Workbook

Sheet Menus
A1: MENUS sheet for Isoplot | E1: Revision | F1: 4.15 | G1: 2011-10-15 | L1: 1.048576 | M1: Mb available | AP1: ClrStuff
E2: Version | F2: 4.15.11.10.15 | T2: MenuItems Links | AC2: Options | AD2: 0 | AF2: OptColors | AI2: OptClrsRGB | AM2: OptFonts | AP2: ClrNames | AR2: Indx | AS2: ClrRGB
B3: Decay | C3: Initial U/Pb | G3: Relevant | J3: Axis Names | Q3: Single-Stage Pb Growth Curve | T3: IsoType | U3: Symbol | V3: Color | Z3: AbsPercent | AA3: SigmaLevel | AB3: PlotBoxborder | AC3: TRUE | AD3: 1 | AE3: Opt.PlotboxBorder | AF3: None | AG3: 0 | AH3: 1 | AI3: 16777215 | AM3: Arial | AP3: FontClr | AQ3: iFontClr | AR3: -1 | AS3: -1 | AT3: cFontClr | AU3: R | AV3: G | AW3: B
B4: consts | C4: Disequilibrium | F4: Windows | G4: Decay | H4: <<< Refers to DecayConsts" range | J4: --------- Normal --------- | M4: -------- Inverse -------- | Q4: Initial 206Pb/204Pb | R4: 11.152 | T4: 18 | U4: 1 | V4: 5 | Z4: 2 | AA4: 1 | AB4: Sheet color | AC4: 12648447 | AD4: 2 | AE4: Opt.SheetClr | AF4: Black | AG4: 1 | AH4: 2 | AI4: 0 | AM4: Arial Narrow | AP4: None | AQ4: iNone | AR4: -4142 | AS4: -4142 | AT4: cNone | AU4: 0 | AV4: 0 | AW4: 0 | BF4: IsoTypeIsotopes
A5: Nuclide | B5: /yr | C5: Nuclides | D5: Activity ratio | F5: Plot Type | G5: const | H5: (Windows) | I5: (Mac) | J5: X axis | K5: Y axis | L5: [Z axis] | M5: X axis | N5: Y axis | O5: [Z axis] | Q5: Initial 207Pb/204Pb | R5: 12.998 | U5: error ellipse | V5: black | W5: 1 | Y5: 0 | Z5: absolute | AB5: Plotbox color | AC5: 14935011 | AD5: 3 | AE5: Opt.PlotboxClr | AF5: White | AG5: 2 | AH5: 3 | AI5: 16777215 | AM5: Arial Rounded MT Bold | AP5: Black | AQ5: iBlack | AR5: 1 | AS5: 0 | AT5: cBlack | AU5: 255 | AV5: 255 | AW5: 255 | AZ5: InputRangePrompt | BC5: Isotype | BE5: Normal | BH5: UsType | BK5: Inverse | BO5: Worksheet Menu Bar | BS5: Chart Menu Bar
A6: 238U | B6: 1.55125e-10 | C6: 234U/238U | D6: 1 | E6: 1 | F6: U-Pb Concordia | H6: U-Pb Concordia | I6: U-Pb Concordia | J6: 207Pb/235U | K6: 206Pb/238U | L6: 204Pb/238U | M6: 238U/206Pb | N6: 207Pb/206Pb | O6: 204Pb/206Pb | Q6: Initial 208Pb/204Pb | R6: 31.23 | U6: error cross | V6: red | W6: 3 | Y6: 255 | Z6: percent | AB6: Age-tick symbol line Color | AC6: 9437184 | AD6: 4 | AE6: Opt.AgeTikSymbClr | AF6: Lt gray | AG6: 40 | AH6: 4 | AI6: 14935011 | AM6: Book Antiqua | AP6: White | AQ6: iWhite | AR6: 2 | AS6: 16777215 | AT6: cWhite | AU6: 221 | AV6: 8 | AW6: 6 | AX6: 1 | AY6: ||207Pb/235U [,±], 206Pb/238U [,±] [,rho] | AZ6: ||238U/206Pb [,±], 207Pb/206Pb [,±] [,rho] | BA6: 238U/206Pb [,±], 207Pb/206Pb [,±],|204Pb/206Pb [,±]|[,rho8/6-7/6][,rho8/6-4/6]|[,rho 7/6-4/6] | BC6: 1 | BD6: 207 | BE6: 235 | BF6: 206 | BG6: 238 | BI6: 238 | BJ6: 206 | BK6: 207 | BL6: 206 | BO6: &Run | BQ6: StartFromIso | BS6: &Format chart symbols | BT6: &Rescale Filled Symbols | BU6: RescaleOnlyShapes
A7: 235U | B7: 9.8485e-10 | C7: 230Th/238U | D7: 1 | E7: 2 | F7: Ar-Ar isochron | G7: 0.0005543 | H7: Ar-Ar isochron | I7: Ar-Ar isochron | J7: 39Ar/36Ar | K7: 40Ar/36Ar | L7: -- | M7: 39Ar/40Ar | N7: 36Ar/40Ar | O7: -- | Q7: Source 238U/204Pb | R7: 9.74 | U7: error box | V7: green | W7: 10 | Y7: 43520 | AB7: Age-tick symbol fill Color | AC7: 16777215 | AD7: 5 | AE7: Opt.AgeTikSymbFillClr | AF7: Med Gray | AG7: 15 | AH7: 5 | AI7: 12632256 | AM7: Bookman Oldstyle | AP7: Red | AQ7: iRed | AR7: 3 | AS7: 395485 | AT7: cRed | AU7: 31 | AV7: 183 | AW7: 20 | AX7: 2 | AY7: ||39Ar/36Ar [,±] 40Ar/36Ar [,±] [,rho] | AZ7: ||39Ar/40Ar [,±], 36Ar/40Ar [,±] [,rho] | BC7: 2 | BD7: 39 | BE7: 36 | BF7: 40 | BG7: 36 | BI7: 39 | BJ7: 40 | BK7: 36 | BL7: 40 | BO7: &Format embedded charts | BP7: &Rescale Filled Symbols | BQ7: RescaleOnlyShapes | BT7: &Sort Filled Symbols by Size | BU7: OrderOnly
A8: 232Th | B8: 4.9475e-11 | C8: 231Pa/235U | D8: 1 | E8: 3 | F8: Rb-Sr isochron | G8: 1.42e-05 | H8: Rb-Sr isochron | I8: Rb-Sr isochron | J8: 87Rb/86Sr | K8: 87Sr/86Sr | L8: -- | M8: -- | N8: -- | O8: -- | Q8: Source 232Th/238U | R8: 3.78 | U8: square | V8: magenta | W8: 7 | Y8: 16711935 | AB8: Isochron line-color | AC8: 13893632 | AD8: 6 | AE8: Opt.UseriesIsochClr | AF8: Dk Gray | AG8: 16 | AH8: 6 | AI8: 8421504 | AM8: Century Gothic | AP8: Green | AQ8: iGreen | AR8: 4 | AS8: 1357599 | AT8: cGreen | AU8: 0 | AV8: 0 | AW8: 212 | AX8: 3 | AY8: ||87Sr/86Rb [,±],|87Sr/86Sr [,±] | AZ8: ||87Sr/86Rb [,±],|87Sr/86Sr [,±] | BC8: 3 | BD8: 87 | BE8: 86 | BF8: 87 | BG8: 86 | BP8: &Sort Filled Symbols by Size | BQ8: OrderOnly | BT8: &Format All Filled Symbols | BU8: SelectFilled
A9: 87Rb | B9: 1.42e-11 | D9: PbUinitAR | E9: 4 | F9: Sm-Nd isochron | G9: 6.54e-06 | H9: Sm-Nd isochron | I9: Sm-Nd isochron | J9: 147Sm/144Nd | K9: 143Nd/144Nd | L9: -- | M9: -- | N9: -- | O9: -- | Q9: Starting Age | R9: 3700 | U9: diamond | V9: blue | W9: 5 | Y9: 16711680 | AB9: U-series Isochron style | AC9: 4 | AD9: 7 | AE9: Opt.UseriesIsochStyle | AF9: Red | AG9: 3 | AH9: 7 | AI9: 395485 | AM9: Century Schoolbook | AP9: Blue | AQ9: iBlue | AR9: 5 | AS9: 13893632 | AT9: cBlue | AU9: 252 | AV9: 243 | AW9: 5 | AX9: 4 | AY9: ||147Sm/144Nd [,±],|143Nd/144Nd [,±] | AZ9: ||147Sm/144Nd [,±],|143Nd/144Nd [,±] | BC9: 4 | BD9: 147 | BE9: 144 | BF9: 143 | BG9: 144 | BP9: &Format All Filled Symbols | BQ9: SelectFilled | BT9: &Transparency of All Filled Symbols | BU9: ShapeTrans
A10: 147Sm | B10: 6.54e-12 | C10: FALSE | D10: NullErr | E10: 5 | F10: Re-Os isochron | G10: 1.666e-05 | H10: Re-Os isochron | I10: Re-Os isochron | J10: 187Re/188Os | K10: 187Os/188Os | L10: -- | M10: -- | N10: -- | O10: -- | U10: triangle | V10: dark red | W10: 9 | Y10: 200 | AB10: Other Isochron/Chord style | AC10: 4 | AD10: 8 | AE10: Opt.IsochStyle | AF10: Blue | AG10: 5 | AH10: 8 | AI10: 13893632 | AM10: Chicago | AP10: Yellow | AQ10: iYellow | AR10: 6 | AS10: 390140 | AT10: cYellow | AU10: 242 | AV10: 8 | AW10: 132 | AX10: 5 | AY10: ||187Re/188Os [,±], 187Os/188Os [,±] | AZ10: ||187Re/188Os [,±], 187Os/188Os [,±] | BC10: 5 | BD10: 187 | BE10: 188 | BF10: 187 | BG10: 188 | BP10: &Transparency of All Filled Symbols | BQ10: ShapeTrans | BT10: &Color-Scale Filled-Symbols | BU10: UseFalseColors
A11: 187Re | B11: 1.666e-11 | D11: NumErr | E11: 6 | F11: Lu-Hf isochron | G11: 1.867e-05 | H11: Lu-Hf isochron | I11: Lu-Hf isochron | J11: 176Lu/177Hf | K11: 176Hf/177Hf | L11: -- | M11: -- | N11: -- | O11: -- | Q11: Inverse | R11: FALSE | U11: circle | V11: cyan | W11: 8 | Y11: 16776960 | AB11: Curve color | AC11: 9437184 | AD11: 9 | AE11: Opt.CurvClr | AF11: Green | AG11: 4 | AH11: 9 | AI11: 1357599 | AM11: Courier | AP11: Magenta | AQ11: iMagenta | AR11: 7 | AS11: 8653042 | AT11: cMagenta | AU11: 0 | AV11: 171 | AW11: 234 | AX11: 6 | AY11: ||176Lu/177Hf [,±], 176Hf/177Hf [,±] | AZ11: ||176Lu/177Hf [,±], 176Hf/177Hf [,±] | BC11: 6 | BD11: 176 | BE11: 177 | BF11: 176 | BG11: 177 | BP11: &Label Data-Points | BQ11: LabelPoints | BT11: &Label Data-Points | BU11: LabelPoints
A12: 234U | B12: 2.8338e-06 | D12: ValueErr | E12: 7 | F12: K-Ca isochron | G12: 0.0005543 | H12: K-Ca isochron | I12: K-Ca isochron | J12: 40K/42Ca | K12: 40Ca/42Ca | L12: -- | M12: -- | N12: -- | O12: -- | Q12: ColorPlot | R12: TRUE | U12: X | V12: purple | W12: 29 | Y12: 16777215 | AB12: Axis Name Font | AC12: Arial | AD12: 10 | AE12: Opt.AxisNameFont | AF12: Yellow | AG12: 6 | AH12: 10 | AI12: 390140 | AM12: Courier New | AP12: LtBlue | AQ12: iLtBlue | AR12: 8 | AS12: 15379200 | AT12: cLtBlue | AU12: 144 | AV12: 0 | AW12: 0 | AX12: 7 | AY12: ||40K/42Ca [,±], 40Ca/42Ca [,±] | AZ12: ||40K/42Ca [,±], 40Ca/42Ca [,±] | BC12: 7 | BD12: 40 | BE12: 42 | BF12: 40 | BG12: 42 | BS12: &Add any algebraically-defined curve | BU12: AddCurve
A13: 230Th | B13: 9.19525e-06 | C13: miShape | E13: 8 | F13: 207Pb-206Pb isochron | H13: 207Pb-206Pb isochron | I13: 207Pb-206Pb isoch | J13: 206Pb/204Pb | K13: 207Pb/204Pb | L13: 238U/204Pb | M13: 204Pb/206Pb | N13: 207Pb/206Pb | O13: 238U/206Pb | Q13: Autoscale | R13: FALSE | U13: + | V13: font color | W13: -1 | Y13: -1 | AB13: Axis Name Font Size | AC13: 16 | AD13: 11 | AE13: Opt.AxisNameFontSize | AF13: Magenta | AG13: 7 | AH13: 11 | AI13: 8653042 | AM13: Geneva | AP13: DkRed | AQ13: iDkRed | AR13: 9 | AS13: 144 | AT13: cDkRed | AU13: 0 | AV13: 100 | AW13: 17 | AX13: 8 | AY13: ||206Pb/204Pb [,±],|207Pb/204Pb [,±] [,rho] | AZ13: ||207Pb/206Pb [,±], 204Pb/206Pb [,±] [,rho] | BC13: 8 | BD13: 206 | BE13: 204 | BF13: 207 | BG13: 204 | BI13: 204 | BJ13: 206 | BK13: 207 | BL13: 206 | BS13: &Move Chart to data-worksheet | BU13: MoveChart
A14: 176Lu | B14: 1.867e-11 | E14: 9 | F14: 208Pb-206Pb isochron | H14: 208Pb-206Pb isochron | I14: 208Pb-206Pb isoch | J14: 206Pb/204Pb | K14: 208Pb/204Pb | L14: -- | M14: 204Pb/206Pb | N14: 208Pb/206Pb | O14: -- | Q14: DoPlot | R14: TRUE | U14: Line connect | V14: gray | W14: 8421504 | Y14: 8421504 | AB14: Axis tick-label Font | AC14: Arial | AD14: 12 | AE14: Opt.AxisTikLabelFont | AF14: Cyan | AG14: 28 | AH14: 12 | AI14: 16776960 | AM14: Helvetica | AP14: DkGreen | AQ14: iDkGreen | AR14: 10 | AS14: 1139712 | AT14: cDkGreen | AU14: 0 | AV14: 0 | AW14: 144 | AX14: 9 | AY14: ||206Pb/204Pb [,±],|208Pb/204Pb [,±] [,rho] | AZ14: ||204Pb/206Pb [,±], 208Pb/206Pb [,±] [,rho] | BC14: 9 | BD14: 206 | BE14: 204 | BF14: 208 | BG14: 204 | BS14: &Copy Chart-image to data-worksheet | BU14: CopyPicture
A15: 40K tot | B15: 5.543e-10 | E15: 10 | F15: 238U-206Pb isochron | G15: 0.000155125 | H15: 238U-206Pb isochron | I15: 238U-206Pb isoch | J15: 238U/204Pb | K15: 206Pb/204Pb | L15: 207Pb/204Pb | M15: 204Pb/206Pb | N15: 238U/206Pb | O15: 207Pb/235U | Q15: Regress | R15: TRUE | U15: Spline | V15: pale red | W15: 9605884 | Y15: 9605884 | AB15: Axis tick-label font Size | AC15: 12 | AD15: 13 | AE15: Opt.AxisTikLabelFontSize | AF15: Dk Red | AG15: 9 | AH15: 13 | AI15: 144 | AM15: Mishakawa | AP15: DkBlue | AQ15: iDkBlue | AR15: 11 | AS15: 9437184 | AT15: cDkBlue | AU15: 144 | AV15: 113 | AW15: 58 | AX15: 10 | AY15: ||238U/204Pb [,±],|206Pb/204Pb [,±] [,rho] | AZ15: ||204Pb/206Pb [,±], 238U/206Pb [,±] [,rho] | BC15: 10 | BD15: 238 | BE15: 204 | BF15: 206 | BG15: 204 | BI15: 204 | BJ15: 206 | BK15: 238 | BL15: 206 | BS15: &Zoom to plotbox area | BU15: ZoomToPlotbox
A16: 231Pa | B16: 2.13276e-05 | E16: 11 | F16: 235U-207Pb isochron | G16: 0.00098485 | H16: 235U-207Pb isochron | I16: 235U-207Pb isoch | J16: 235U/204Pb | K16: 207Pb/204Pb | L16: 206Pb/204Pb | M16: 204Pb/207Pb | N16: 235U/207Pb | O16: 234U/238U | Q16: AbsErrs | R16: TRUE | U16: Akima spline | V16: pale green | W16: 7733081 | Y16: 7733081 | AB16: Auto axis-tick Spacing | AC16: FALSE | AD16: 14 | AE16: Opt.AxisAutoTikSpace | AF16: Dk Blue | AG16: 11 | AH16: 14 | AI16: 9437184 | AM16: Palatino | AP16: Mud | AQ16: iMud | AR16: 12 | AS16: 3830160 | AT16: cMud | AU16: 70 | AV16: 0 | AW16: 165 | AX16: 11 | AY16: ||235U/204Pb [,±],|207Pb/204Pb [,±] [,rho] | AZ16: ||204Pb/207Pb [,±], 235U/207Pb [,±] [,rho] | BC16: 11 | BD16: 235 | BE16: 204 | BF16: 207 | BG16: 204 | BI16: 204 | BJ16: 207 | BK16: 235 | BL16: 207 | BS16: &Delete Unused Hidden Sheets | BU16: Cleanup
A17: 226Ra | B17: 0.0004332169878 | E17: 12 | F17: 232Th-208Pb isochron | G17: 4.9475e-05 | H17: 232Th-208Pb isochron | I17: 232Th-208Pb isoch | J17: 232Th/204Pb | K17: 208Pb/204Pb | L17: -- | M17: 204Pb/208Pb | N17: 232Th/208Pb | O17: -- | Q17: Anchored | R17: FALSE | V17: pale magenta | W17: 14847485 | Y17: 14847485 | AB17: Isochron results Font | AC17: Arial | AD17: 15 | AE17: IsochResFont | AF17: Dk Purple | AG17: 21 | AH17: 15 | AI17: 8388704 | AM17: Times | AP17: Indigo | AQ17: iIndigo | AR17: 13 | AS17: 10813510 | AT17: cIndigo | AU17: 0 | AV17: 128 | AW17: 128 | AX17: 12 | AY17: ||232Th/204Pb [,±],|208Pb/204Pb [,±] [,rho] | AZ17: ||204Pb/208Pb [,±], 232Th/208Pb [,±] [,rho] | BC17: 12 | BD17: 232 | BE17: 204 | BF17: 208 | BG17: 204 | BI17: 204 | BJ17: 208 | BK17: 232 | BL17: 208 | BS17: Add Data-&Points | BU17: AddPoints
A18: 210Pb | B18: 0.03150669003 | E18: 13 | F18: 230Th-234U-238U isochron | H18: 230Th-234U-238U isochron | I18: 230Th-234U-238U | J18: 230Th/238U | K18: 234U/238U | L18: -- | M18: 232Th/238U | N18: 230Th/238U | O18: 234U/238U | Q18: NoSuper | R18: TRUE | V18: pale blue | W18: 16753571 | Y18: 16690596 | AB18: Isochron results font Size | AC18: 13 | AD18: 16 | AE18: Opt.IsochResFontSize | AF18: Straw | AG18: 19 | AH18: 16 | AI18: 12648447 | AM18: Times New Roman | AP18: Teal | AQ18: iTeal | AR18: 14 | AS18: 8421376 | AT18: cTeal | AU18: 192 | AV18: 192 | AW18: 192 | AX18: 13 | AY18: ||230Th/238U, 234U/238U [,rho] | AZ18: ||230Th/238U, 234U/238U [,rho] | BA18: 230Th/238U [,±], 234U/238U [,±],|232Th/238U [,±]|[,rho0/8-4/8][,rho0/8-2/8]|[,rho 4/8-2/8] | BC18: 13 | BD18: 232 | BE18: 238 | BF18: 230 | BG18: 238 | BH18: 1
A19: Present 238U/235U | E19: 14 | F19: other X-Y [-Z] plot | H19: other X-Y [-Z] plot | I19: other X-Y [-Z] plot | J19: X | K19: Y | L19: Z | Q19: NoUpdate | R19: FALSE | V19: pale aqua | W19: 16771467 | Y19: 16180898 | AB19: Curve-tick font | AC19: Arial | AD19: 17 | AE19: Opt.CurvTikFont | AF19: Salmon | AG19: 22 | AH19: 17 | AI19: 8421631 | AM19: Wide Latin | AP19: Gray75 | AQ19: iGray75 | AR19: 15 | AS19: 12632256 | AT19: cGray75 | AU19: 128 | AV19: 128 | AW19: 128 | AX19: 14 | AY19: ||X [,±], Y [,±] [,rho] | AZ19: ||X [,±], Y [,±] [,rho] | BA19: ||X [,±], Y [,±], Z [,±]|[,r_xy] [,r_xz] [,r_yz] | BC19: 13 | BD19: 232 | BE19: 238 | BF19: 234 | BG19: 238 | BH19: 2 | BP19: Visible | BS19: Position | BT19: Left | BU19: Top
A20: 137.88 | E20: 15 | F20: Weighted Average | H20: Weighted Average | I20: Weighted Average | J20: 232Th/238U | K20: 230Th/238U | L20: 234U/238U | M20: 39Ar | N20: 40Ar | O20: 36Ar | Q20: DoShape | R20: TRUE | V20: pale yellow | W20: 11729662 | Y20: 6553599 | AB20: Curve-tick font size | AC20: 14 | AD20: 18 | AE20: Opt.CurvTikFontSize | AF20: Lavender | AG20: 17 | AH20: 18 | AI20: 16744576 | AP20: Gray50 | AQ20: iGray50 | AR20: 16 | AS20: 8421504 | AT20: cGray50 | AU20: 128 | AV20: 128 | AW20: 255 | AX20: 15 | AY20: ||Value [, error] | AZ20: ||Value [, error] | BC20: 13 | BD20: 230 | BE20: 238 | BF20: 234 | BG20: 238 | BH20: 3 | BO20: WorksheetTools | BP20: TRUE | BQ20: Isoplot 3 Worksheet Tools | BS20: 4 | BT20: 113 | BU20: 122
E21: 16 | F21: Probability density plot | H21: Probability density plot | I21: Prob. density plot | J21: 232Th/238U | K21: 234U/238U | L21: 230Th/238U | M21: 39Ar | N21: 36Ar | O21: 40Ar | Q21: StackIso | R21: FALSE | V21: orange | Y21: 3381759 | AB21: Isochron/concordia results-box Shadow | AC21: TRUE | AD21: 19 | AE21: Opt.IsochResboxShadw | AF21: Blue Gray | AG21: 24 | AH21: 19 | AI21: 16761024 | AP21: Periwinkle | AQ21: iPeriwinkle | AR21: 17 | AS21: 16744576 | AT21: cPeriwinkle | AU21: 128 | AV21: 32 | AW21: 96 | AX21: 16 | AY21: ||Value [, error] | AZ21: ||Value [, error] | BC21: 13 | BD21: 238 | BE21: 232 | BF21: 230 | BG21: 232 | BH21: 4 | BO21: ChartsIsochrons | BP21: TRUE | BQ21: Isoplot 3 Charts & Isochrons | BS21: 4 | BT21: 493 | BU21: 181
E22: 17 | F22: Linearized probability Plot | H22: Linearized probability Plot | I22: Linearized Prob plot | J22: 230Th/238U | K22: 234U/238U | L22: 232Th/238U | M22: 40Ar | N22: 36Ar | O22: 39Ar | AB22: Isochron results-box Rounded | AC22: TRUE | AD22: 20 | AE22: Opt.IsochResboxRnd | AF22: Lt Teal | AG22: 42 | AH22: 20 | AI22: 13421619 | AP22: DkMauve | AQ22: iDkMauve | AR22: 18 | AS22: 6299776 | AT22: cDkMauve | AU22: 255 | AV22: 255 | AW22: 192 | AX22: 17 | AY22: ||Value [, error] | AZ22: ||Value [, error] | BO22: Charttools | BP22: TRUE | BQ22: Isoplot 3 Chart Tools | BS22: 1 | BT22: 1209 | BU22: 31
A23: Half Lives (yr) | C23: CanonicalLambdas | E23: 18 | F23: Ar-Ar age spectrum | G23: 0.0005543 | H23: Ar-Ar age spectrum | I23: Ar-Ar age spectrum | J23: 230Th/238U | K23: 234U/238U | P23: Model Ages | T23: Present-day CHUR | W23: Canonical | AB23: Concordia results-box Rounded | AC23: TRUE | AD23: 21 | AE23: Opt.ConcResboxRnd | AF23: Orange | AG23: 45 | AH23: 21 | AI23: 3368601 | AP23: Straw | AQ23: iStraw | AR23: 19 | AS23: 12648447 | AT23: cStraw | AU23: 160 | AV23: 224 | AW23: 224 | AX23: 18 | AY23: ||Moles 39Ar, Age, ± | AZ23: ||Moles 39Ar, Age, ±
A24: 238U | B24: 4468313815 | C24: 1.55125e-10 | E24: 19 | F24: Ar-Ar PlateauChron | G24: 0.0005543 | H24: Ar-Ar PlateauChron | I24: Ar-Ar PlateauChron | J24: 232Th/238U | K24: 230Th/238U | Q24: Lambda | R24: P/D | S24: R | W24: P/D | X24: R | AB24: Curve/ellipse resolution | AC24: 2 | AD24: 22 | AE24: Opt.CurveRes | AF24: Purple | AG24: 29 | AH24: 22 | AI24: 8388736 | AP24: Aqua | AQ24: iAqua | AR24: 20 | AS24: 14737568 | AT24: cAqua | AU24: 96 | AV24: 0 | AW24: 128 | AX24: 19 | AY24: |Moles 39Ar,|39Ar/36Ar [,±],|40Ar/36Ar [,±]|[,rho 39/36-40/36] | AZ24: |Moles 39Ar,|39Ar/40Ar [,±],|36Ar/40Ar [,±]|[,rho 39/40-36/40] | BO24: 1 | BP24: DetritalYoungthIndx
A25: 235U | B25: 703809900.6 | C25: 9.8485e-10 | E25: 20 | F25: Graph any function | H25: Graph any function | I25: Graph any function | J25: 238U/232Th | K25: 230Th/232Th | P25: Sr | Q25: 1.42e-11 | R25: 0.0736 | S25: 0.70391 | T25: 87Rb/86Rb | U25: 87Sr/86Sr | V25: RbSr | W25: 0.0736 | X25: 0.70391 | AB25: Symbol code for age ticks | AC25: 8 | AD25: 23 | AE25: Opt.AgeTikSymbol | AF25: Teal | AG25: 14 | AH25: 23 | AI25: 8421376 | AP25: DkPurple | AQ25: iDkPurple | AR25: 21 | AS25: 8388704 | AT25: cDkPurple | AU25: 255 | AV25: 128 | AW25: 128 | AX25: 20
A26: 232Th | B26: 1.401004913e+10 | C26: 4.9475e-11 | E26: 21 | F26: Ages of stacked beds | H26: Ages of stacked beds | I26: Stacked bed ages | P26: Nd | Q26: 6.54e-12 | R26: 0.1967 | S26: 0.512636 | T26: 147Sm/144Nd | U26: 143Nd/144Nd | V26: SmNd | W26: 0.1967 | X26: 0.512636 | AB26: Thicker or thinner axis lines | AC26: FALSE | AD26: 24 | AE26: Opt.AxisThick | AF26: Dk cyan | AG26: 33 | AH26: 24 | AI26: 16763904 | AP26: Salmon | AQ26: iSalmon | AR26: 22 | AS26: 8421631 | AT26: cSalmon | AU26: 0 | AV26: 128 | AW26: 192 | AX26: 21 | AY26: ||Age [, error]|(data rows must be in| stratigraphic order) | AZ26: ||Age [, error]|(data rows must be in| stratigraphic order)
A27: 87Rb | B27: 4.881318173e+10 | C27: 1.42e-11 | E27: 22 | F27: Ages of stacked U-series | H27: Ages of stacked U-series | I27: Stacked U-series | K27: Line Styles | P27: Os | Q27: 1.666e-11 | R27: 0.4005 | S27: 0.1247 | T27: 187Re/188Os | U27: 187Os/188Os | V27: ReOs | W27: 0.4005 | X27: 0.1247 | AB27: Clip error ellipses within plotbox | AC27: FALSE | AD27: 25 | AE27: Opt.ClipEllipse | AP27: GrayBlue | AQ27: iGrayBlue | AR27: 23 | AS27: 12615680 | AT27: cGrayBlue | AU27: 192 | AV27: 192 | AW27: 255 | AX27: 22 | AY27: |230Th/238U, err,|234U/238U, err, err-correl|(data rows must be|in stratigraphic order!) | AZ27: 230Th/238U, err,|234U/238U, err,|err-correl|(data rows must be|in stratigraphic order!)
A28: 147Sm | B28: 1.059858074e+11 | C28: 6.54e-12 | E28: 23 | F28: Unmix ages | H28: Unmix ages | I28: Unmix ages | K28: Continuous | L28: xlContinuous | M28: 1 | P28: Hf | Q28: 1.94e-11 | R28: 0.0334 | S28: 0.28286 | T28: 176Lu/177Hf | U28: 176Hf/177Hf | V28: LuHf | W28: 0.0334 | X28: 0.28286 | AB28: Axis major-ticks cross the axis? | AC28: FALSE | AD28: 26 | AE28: Opt.AxisTickCross | AF28: optclrnames | AP28: Lavender | AQ28: iLavender | AR28: 24 | AS28: 16761024 | AT28: cLavender | AU28: 0 | AV28: 0 | AW28: 128 | AX28: 23 | AY28: ||Age [, error] | AZ28: ||Age [, error]
A29: 187Re | B29: 4.160547302e+10 | C29: 1.666e-11 | E29: 24 | F29: Zircon age extractor | H29: Zircon age extractor | I29: Zircon age extractor | K29: Dashed | L29: xlDash | M29: -4115 | AB29: Curve age-tick symbol size | AC29: 6 | AD29: 27 | AE29: Opt.AgeTikSymbSize | AP29: BlueBlack | AQ29: iBlueBlack | AR29: 25 | AS29: 8388608 | AT29: cBlueBlack | AU29: 255 | AV29: 0 | AW29: 255 | AX29: 24 | AY29: ||Age [, error] | AZ29: ||Age [, error]
A30: 234U | B30: 244599.8943 | C30: 2.833798776e-06 | E30: 25 | F30: Youngest detrital zircon | H30: Youngest detrital zircon | I30: Youngest detr. Zirc | K30: Dot | L30: xlDot | M30: -4118 | Q30: WideMargins | R30: FALSE | U30: 0.05 | V30: Min. Prob. before regression error-expansion | AB30: Simple plot-symbol size | AC30: 6 | AD30: 28 | AE30: Opt.SimplePlotSymbSize | AP30: Pink | AQ30: iPink | AR30: 26 | AS30: 16711935 | AT30: cPink | AU30: 255 | AV30: 255 | AW30: 0
A31: 230Th | B31: 75381.00438 | C31: 9.195250535e-06 | E31: AgeTikSymbol | G31: AgeTikSymbolCode | H31: AgeTikSymbSize | I31: AgeTikSymbSizeCode | K31: Dash-dot | L31: xlDashDot | M31: 4 | Q31: ShowMoveChart | R31: FALSE | AB31: Concordia curve thickness | AC31: -4138 | AD31: 29 | AE31: Opt.ConcLineThick | AP31: LtYellow | AQ31: iLtYellow | AR31: 27 | AS31: 65535 | AT31: cLtYellow | AU31: 0 | AV31: 255 | AW31: 255
A32: 176Lu | B32: 3.572923611e+10 | C32: 1.94e-11 | E32: None | F32: xlNone | G32: -4142 | H32: very small | I32: 3 | K32: Dash-dot-dot | L32: xlDashDotDot | M32: 5 | Q32: CurvWithDCE | R32: FALSE | AB32: Always plot err-symbols at 2-sigma? | AC32: FALSE | AD32: 30 | AE32: Opt.Always2Sigma | AP32: Cyan | AQ32: iCyan | AR32: 28 | AS32: 16776960 | AT32: cCyan | AU32: 128 | AV32: 0 | AW32: 128
A33: 40K tot | B33: 1250491035 | C33: 5.543e-10 | E33: Circle | F33: xlCircle | G33: 8 | H33: small | I33: 4 | K33: 50% gray | L33: xlGray50 | M33: -4125 | Q33: BandBehind | R33: FALSE | AB33: Error-Cross End-Caps | AC33: TRUE | AD33: 31 | AE33: Opt.EndCaps | AP33: Purple | AQ33: iPurple | AR33: 29 | AS33: 8388736 | AT33: cPurple | AU33: 128 | AV33: 0 | AW33: 0
A34: 231Pa | B34: 32500.00847 | C34: 2.132760556e-05 | E34: Square | F34: xlSquare | G34: 1 | H34: medium small | I34: 5 | K34: 75% gray | L34: xlGray75 | M34: -4126 | Q34: PvLines | R34: TRUE | AB34: Isochron Line-thickness | AC34: 1 | AD34: 32 | AE34: Opt.IsochLineThick | AP34: RedBlack | AQ34: iRedBlack | AR34: 30 | AS34: 128 | AT34: cRedBlack | AU34: 0 | AV34: 128 | AW34: 128
A35: 226Ra | B35: 1600 | C35: 0.0004332169878 | E35: Diamond | F35: xlDiamond | G35: 2 | H35: medium large | I35: 6 | K35: 25% gray | L35: xlGray25 | M35: -4124 | Q35: AutoRescale | R35: FALSE | AP35: DkTeal | AQ35: iDkTeal | AR35: 31 | AS35: 8421376 | AT35: cDkTeal | AU35: 0 | AV35: 0 | AW35: 255
A36: 210Pb | B36: 22 | C36: 0.03150669003 | E36: Triangle | F36: xlTriangle | G36: 3 | H36: large | I36: 8 | K36: None | L36: xlNone | M36: -4142 | Q36: AutoSort | R36: FALSE | AP36: MedBlue | AQ36: iMedBlue | AR36: 32 | AS36: 16711680 | AT36: cMedBlue | AU36: 105 | AV36: 255 | AW36: 255
E37: + | F37: xlPlus | G37: 9 | H37: very large | I37: 9 | K37: LineStyleNames | L37: LineStyles | M37: LineStyleVariables | Q37: UevoGamma0_1 | R37: 1.2 | AP37: LtCyan | AQ37: iLtCyan | AR37: 34 | AS37: 16777065 | AT37: cLtCyan | AU37: 204 | AV37: 255 | AW37: 204
E38: X | F38: xlX | G38: -4168 | Q38: UevoMaxT | R38: 300 | AP38: LtGreen | AQ38: iLtGreen | AR38: 35 | AS38: 13434828 | AT38: cLtGreen | AU38: 227 | AV38: 227 | AW38: 227
A39: DecayConstPerrs | C39: Jaffey et al values | Q39: UevoMultCurves | R39: TRUE | AP39: LtGray | AQ39: iGray89 | AR39: 40 | AS39: 14935011 | AT39: cGray89 | AU39: 51 | AV39: 153 | AW39: 51
A40: 238U | B40: 0.107 | C40: 0.107 | I40: LineThick | M40: LineThick | Q40: UevoLabelCurves | R40: TRUE | AP40: MedGreen | AQ40: iMedGreen | AR40: 43 | AS40: 3381555 | AT40: cMedGreen | AU40: 150 | AV40: 150 | AW40: 150
A41: 235U | B41: 0.136 | C41: 0.136 | I41: Hairline | J41: xlHairline | K41: 1 | M41: Hairline | N41: xlHairline | O41: 1 | Q41: UevoLabelKa | R41: 140 | AP41: MedGray | AQ41: iGray60 | AR41: 48 | AS41: 9868950 | AT41: cGray60 | AU41: 51 | AV41: 102 | AW41: 102
A42: 234U | B42: 0.2 | I42: Thin | J42: xlThin | K42: 2 | M42: Thin | N42: xlThin | O42: 2 | Q42: UevoIsochrons | R42: FALSE | AP42: GreenBlack | AQ42: iGreenBlack | AR42: 50 | AS42: 6710835 | AT42: cGreenBlack | AU42: 153 | AV42: 51 | AW42: 102
A43: 230Th | B43: 0.3 | I43: Medium | J43: xlMedium | K43: -4138 | M43: Medium | N43: xlMedium | O43: -4138 | Q43: UevoAgeTicks | R43: TRUE | AP43: Mauve | AQ43: iMauve | AR43: 54 | AS43: 6697881 | AT43: cMauve | AU43: 66 | AV43: 66 | AW43: 66
B44: 2 sigma!! | I44: Thick | J44: xlThick | K44: 4 | M44: Thick | N44: xlThick | O44: 4 | Q44: UevoNeither | R44: FALSE | AP44: DkGray | AQ44: iGray26 | AR44: 56 | AS44: 4342338 | AT44: cGray26 | AU44: 0 | AV44: 204 | AW44: 255
F45: FilledSymbols | G45: TRUE | I45: LineThickNames | J45: LineThick | K45: LineThickCode | M45: CurvLineThickNames | N45: CurvLineThick | O45: CurvLineThickCode | Q45: UevoTickInterval | R45: 25 | AR45: 33 | AS45: 16763904 | AU45: 255 | AV45: 255 | AW45: 153
Q46: UevoLabelTicks | R46: TRUE | AR46: 36 | AS46: 10092543 | AU46: 166 | AV46: 202 | AW46: 240
G47: Air 40Ar/36Ar | Q47: UevoOutside | R47: FALSE | AR47: 37 | AS47: 15780518 | AU47: 204 | AV47: 156 | AW47: 204
G48: 295.5 | Q48: UevoInside | R48: TRUE | AR48: 38 | AS48: 13409484 | AU48: 204 | AV48: 153 | AW48: 255
A49: IsoMenu | AR49: 39 | AS49: 16751052 | AU49: 51 | AV49: 102 | AW49: 255
A50: 10 | C50: Jinput | F50: IsoFill | G50: IsoTBV | H50: LineAgeTik | AR50: 41 | AS50: 16737843 | AU50: 51 | AV50: 204 | AW50: 204
A51: 13 | C51: Jay | F51: TRUE | G51: FALSE | H51: FALSE | AR51: 42 | AS51: 13421619 | AU51: 153 | AV51: 153 | AW51: 51
C52: Jerror | D52: .1 | AR52: 44 | AS52: 3381657 | AU52: 153 | AV52: 102 | AW52: 51
C53: Jpercent | D53: TRUE | AR53: 45 | AS53: 3368601 | AU53: 153 | AV53: 102 | AW53: 102
A54: FALSE | C54: Jabs | D54: FALSE | F54: Nuclides | AR54: 46 | AS54: 6710937 | AU54: 102 | AV54: 102 | AW54: 153
C55: ArKa | D55: FALSE | F55: 1 H 2 H 3 He 4 He 6 Li 7 Li 9 Be 10 Be 10 B 11 B 12 C 13 C 14 C 14 N 15 N 16 O 17 O 18 O 19 F 20 Ne 21 Ne 22 Ne 23 Na 24 Mg 25 Mg 26 Mg 26 Al 27 Al 31 P 28 Si 29 Si 30 Si 32 S 33 S 34 S 36 S 35 Cl 36 Cl 37 Cl 36 Ar 37 Ar 38 Ar 39 Ar 40 Ar 39 K 40 K 41 K 4 | AR55: 47 | AS55: 10053222 | AU55: 51 | AV55: 51 | AW55: 204
C56: ArMinGas | D56: 60 | F56: 0 Ca 42 Ca 43 Ca 44 Ca 45 Ca 46 Ca 48 Ca 45 Sc 46 Ti 47 Ti 47 Ti 48 Ti 49 Ti 50 Ti 50 V 51 V 50 Cr 52 Cr 53 Cr 54 Cr 55 Mn 54 Fe 55 Fe 56 Fe 58 Fe 59 Co 60 Co 58 Ni 58 Ni 60 Ni 61 Ni 62 Ni 64 Ni 63 Cu 65 Cu 64 Zn 66 Zn 67 Zn 68 Zn 70 Zn 69 Ga 71 Ga 70 Ge | AR56: 49 | AS56: 13382451 | AU56: 0 | AV56: 51 | AW56: 0
A57: FALSE | C57: ArMinProb | D57: 0.01 | F57: 72 Ge 73 Ge 74 Ge 76 Ge 75 As 74 Se 76 Se 77 Se 78 Se 80 Se 82 Se 79 Br 81 Br 78 Kr 80 Kr 82 Kr 83 Kr 84 Kr 86 Kr 85 Rb 87 Rb 84 Sr 86 Sr 87 Sr 88 Sr 90 Sr 89 Y 90 Zr 91 Zr 92 Zr 94 Zr 96 Zr 92 Zr 94 Zr 96 Zr 93 Nb 92 Mo 94 Mo 95 Mo 96 Mo 97 Mo 98 Mo 100 | AR57: 51 | AS57: 13056 | AU57: 51 | AV57: 51 | AW57: 0
C58: ArMinSteps | D58: 3 | F58: Mo 96 Ru 98 Ru 99 Ru 100 Ru 101 Ru 102 Ru 104 Ru 103 Rh 102 Pd 104 Pd 105 Pd 106 Pd 108 Pd 110 Pd 107 Ag 109 Ag 106 Cd 108 Cd 110 Cd 111 Cd 112 Cd 113 Cd 114 Cd 116 Cd 113 In 115 In 112 Sn 114 Sn 115 Sn 116 Sn 117 Sn 118 Sn 119 Sn 120 Sn 122 Sn 124 Sn 121 | AR58: 52 | AS58: 13107 | AU58: 102 | AV58: 51 | AW58: 0
F59: Sb 123 Sb 120 Te 122 Te 123 Te 124 Te 125 Te 126 Te 128 Te 130 Te 127 I 124 Xe 126 Xe 128 Xe 129 Xe 130 Xe 131 Xe 132 Xe 134 Xe 136 Xe 131 Cs 133 Cs 130 Ba 132 Ba 134 Ba 135 Ba 136 Ba 137 Ba 138 Ba 138 La 139 La 136 Ce 138 Ce 140 Ce 142 Ce 141 Pr 142 Nd | AR59: 53 | AS59: 13158 | AU59: 51 | AV59: 51 | AW59: 153
A60: FALSE | F60: 143 Nd 144 Nd 145 Nd 146 Nd 148 Nd 150 Nd 144 Sm 147 Sm 148 Sm 149 Sm 150 Sm 152 Sm 154 Sm 151 Eu 153 Eu 152 Gd 154 Gd 155 Gd 156 Gd 157 Gd 158 Gd 160 Gd 159 Tb 158 Dy 156 Dy 160 Dy 161 Dy 162 Dy 163 Dy 164 Dy 165 Ho 162 Er 164 Er 166 Er 167 Er 168 Er 170 | AR60: 55 | AS60: 10040115
F61: Er 169 Tm 168 Yb 170 Yb 171 Yb 172 Yb 173 Yb 174 Yb 176 Yb 175 Yb 176 Yb 175 Lu 176 Lu 174 Hf 176 Hf 177 Hf 178 Hf 179 Hf 180 Hf 180 Ta 181 Ta 180 W 182 W 183 W 184 W 183 W 184 W 186 W 185 Re 187 Re 184 Os 186 Os 187 Os 188 Os 189 Os 190 Os 192 Os 191 Ir
F62: 193 Ir 190 Pt 192 Pt 193 Pt 194 Pt 195 Pt 196 Pt 198 Pt 197 Au 196 Hg 198 Hg 199 Hg 200 Hg 201 Hg 202 Hg 204 Hg 203 Tl 205 Tl 204 Pb 205 Pb 206 Pb 207 Pb 208 Pb 210 Pb 209 Bi 226 Ra 229 Th 230 Th 232 Th 231 Pa 233 Pa 232 U 233 U 234 U 235 U 236 U 238 U
A63: FALSE
F64: RadNuclides
F65: 36 Ar 37 Ar 38 Ar 39 Ar 40 Ar 39 K 40 K 41 K 40 Ca 42 Ca 43 Ca 44 Ca 45 Ca 46 Ca 48 Ca 85 Rb 87 Rb 84 Sr 86 Sr 87 Sr 88 Sr 142 Nd 143 Nd 144 Nd 145 Nd 146 Nd 148 Nd 150 Nd 144 Sm 147 Sm 148 Sm 149 Sm 150 Sm 152 Sm 154 Sm 175 Lu 176 Lu 174 Hf 176 Hf 177 Hf
A66: FALSE | F66: 178 Hf 179 Hf 180 Hf 185 Re 187 Re 184 Os 186 Os 187 Os 188 Os 189 Os 190 Os 192 Os 204 Pb 205 Pb 206 Pb 207 Pb 208 Pb 210 Pb 226 Ra 231 Pa 233 Pa 229 Th 230 Th 232 Th 232 U 233 U 234 U 235 U 236 U 238 U
A69: FALSE
A72: FALSE
A75: FALSE
A78: FALSE
A81: FALSE
A84: FALSE
A87: FALSE
A90: FALSE
A93: FALSE
A96: FALSE
A99: FALSE
A102: FALSE
A105: FALSE
A108: FALSE
A111: FALSE
A114: FALSE
A117: FALSE
A120: FALSE

Sheet Logo

Sheet Caveats
A1: Model1hiHelp | B1: A 'Model 1' regression with a 'high' probability-of-fit indicates that the actual scatter of the data-points about the regression line is (more or less) the amount predicted by the assigned data-point errors. The data points are therefore weighted according to the inverse-square of their individual errors when calculating the regression line. The slope- and intercept-errors of the regression line are propagated from the assigned data-point errors alone, regardless of the actual scatter of the data points from the regression line.
A2: Model1loHelp | B2: A 'Model 1' regression having a low probability-of-fit indicates that causes other than the assigned data-point errors are responsible for the scatter of the points about a line. Though the data points are weighted according to their assigned errors for this type of regression, such weighting is optimum only if the true errors of the points are, for some reason, directly proportional to the assigned errors. The regression errors are calculated based on the actual scatter of the points (rather than simply propagating the assigned data-point errors), and are reliable only if the residuals (scatter) have a Gaussian distribution.
A3: Model2Help | B3: A 'Model 2' regression weights all of the data-points equally, ignoring the assigned errors. Though there is probably no physical mechanism for which this model is optimum, it may nevertheless be better than analytical-error weighting when the analytical errors are clearly insufficient to account for the observed scatter of the data-points about a regression line. Model 2 regressions retain the assumption of a Gaussian distribution of residuals about the regression line. Because this assumption may well be invalid for real-world data, the resulting regression-line errors (calculated from the observed scatter of the points from the regression line) are likely to be over-optimistic.
A4: Model3Help | B4: A 'Model 3' regression weights the data-points by a combination of their assigned errors and an assumed, iteratively-determined variation in the initial isotopic ratio. If the magnitude of this calculated variation (see the Results box) is geochemically unreasonable, a Model 3 regression is inappropriate.
A5: RobustHelp | B5: Robust regressions make no assumptions about the cause of the scatter about a regression line, and so ignore the assigned data-point errors even if provided. Such regressions require that the observed order of the data-points along the regression line is the same as their true order. Therefore, they should NOT be used for data sets whose dispersion is comparable or less than their analytical errors. Isoplot usually uses the algorithm of Vugrinovich, (1981, J. Math. Geol. 13, 443-454), which is based on Theil (1950, Proc. Koninklijke Nederlands Akad. Wetenschappen 53, 386-392, 521-525, 1397-1412). For very large data-sets, however, Siegel's algorithm (1982, Biometrika 69, 242-244) is used.
A6: PlanarConcHelp | B6: Planar regressions of Concordia data are valid for two basic types of U/Pb systems: 1) The system has a single common-Pb isotopic composition which is not precisely known, but has either suffered a single disturbance of its U/Pb ratio, or is undisturbed but contains a single inherited age-component. 2) The common Pb of the system is dispersed along a secondary Pb-Pb isochron, but the radiogenic U/Pb is both undisturbed and inheritance-free. You must use your geochemical/geological understanding of the system to decide which is appropriate.
A7: TotalPbUHelp | B7: The 'Total Pb/U isochron' (a concordia-constrained, 3-D linear regression; see Geochim. Cosmochim. Acta 62, 665-676) is appropriate for an undisturbed (concordant) U/Pb system with a single common Pb whose isotopic composition is not precisely known. When the 204Pb measurements are reasonably precise, this isochron is the ultimate test of a closed U-Pb system, and yields the most precise possible age.
A8: ConcAgeHelp | B8: The Concordia Age (see Geochim. Cosmochim. Acta 62, 665-676) is valid for an assemblage of one or more analyses on samples of identical age whose Pb is highly radiogenic. For data with relatively low 207Pb/204Pb (say less than about 50), you should use the Total Pb/U isochron (concordia-constrained 3-D linear regression) instead.
A9: BracketAgeHelp | B9: The ages and age-errors given by this (Bayesian) procedure are only valid to the extent that: 1) You are certain of the relative ages of the different units, and 2) The assigned age-errors are accurate, with a truly Gaussian distribution.
A10: BracketUseriesHelp | B10: The ages and age-errors given by this (Bayesian) procedure are only valid to the extent that: 1) You are certain of the relative ages of the different samples, 2) The assigned isotope-ratio errors and error-correlations are accurate, and 3) The samples have behaved as precisely closed systems.
A11: MixHelp | B11: This algorithm is quantitatively accurate only to the extent that the number of components assigned is valid. If you're hoping to have the data themselves tell you how many components exist, you're on shaky ground to start with and should beware of over-interpretation. The 'Relative Misfit' parameter indicates the degree to which additional components reduces the amount of unexplained scatter of the input data, relative to their assigned errors. The 'Relative Misfit' of a single component is 1.00. If you MUST guess at the true number of components, try increasing the number of guessed components by 1, then recalculating. Do this until either the Relative Misfit fails to decrease significantly, or two of the calculated components have nearly the same age. Read the original paper! (Sambridge & Compston, 1994, Mixture modeling of multi-component data sets with application to ion-probe zircon ages: Earth Planet. Sci. Lett. 128, 373-390)
A12: ConcLinTypeHelp | B12: A Concordia-Constrained 3-D Linear regression ( the 'Total Pb/U Isochron' -- see Geochim. Cosmochim. Acta 62, 665-676) forces the best-fit line to fall somewhere on the Concordia curve at zero 204Pb. This regression solves for the age and the common-Pb isotope ratios of a concordant system with a single, shared common Pb. If you have some idea of the common-Pb isotope ratios, it is useful to include these ratios as an additional data-point (with very small but nonzero 238U/206Pb -- say .000001) together with your estimate of the uncertainties of the ratios. An unconstrained regression is not particularly useful except for visualization of how close the regression line comes to the Concordia curve if unconstrained, and the affect on the MSWD of adding or removing the Concordia constraint. The Trial Values for the common-Pb ratios are used as a starting guess by Isoplot. If the regression fails, you can try entering different values for these ratios.
A13: ArStepAgeHelp | B13: The combined Ar-Ar isochron/Ar-Ar plateau age is the Ar-Ar isochron age for a subset of the individual steps of the stepwise release procedure. This subset is: (1) a continuous set of adjacent steps of the stepwise release procedure, (2) defines an isochron with a probability-of-fit of no less than 0.05, and (3) comprises the largest amount of gas of any set of steps that fulfill (1) and (2). Unlike a conventional plateau age, this age makes no assumptions about the 40Ar/36Ar of the trapped component, and correctly propagates the error arising from the uncertainty of the trapped 40Ar/36Ar.
A14: TuffZircHelp | B14: A TuffZirc age is simply the median of the largest group of internally-concordant single-zircon (!) 238U/206Pb dates whose ages are statistically reasonably coherent. YOU ARE RESPONSIBLE FOR ELIMINATING DISCORDANT GRAINS FROM THE DATA SET. The algorithm will also ignore dates whose errors are anomalously large compared to the rest of the data. Simulations show that a TuffZirc age is reliable within its assigned error provided that at least 30-40% of the dates (larger sets of dates being more robust) are both: 1) Cogenetic with eruption age -- that is, neither inherited, xenocrysts, or long-residence-time crystals, and 2) Unaffected by Pb loss. In most cases, failure of one or the other of the above requirements will prohibit a TuffZirc age from being calculated. Failure of the algorithm, in terms or reporting an incorrect age, requires either that xenocrystic zircons with a common age are more abundant that syn-eruptive zircons, or that a 'plateau' level of Pb loss at some nonzero value exists. The TuffZirc algorithm cannot be used for suites of analyses on multi-grain zircon fractions, even when those fractions comprise only 2 or 3 crystals.
A15: AnchHelp | B15: You can force a discordia line to pass through a specified age on the Concordia curve, or (if a Tera-Wasserburg plot) through a specified common 207Pb/206Pb. You can also assign an uncertainty to the age or ratio, so that the discordia can 'miss' the specified value to a certain degree. If you are propagating the errors of the discordia-intercept ages by Monte Carlo, you must also specify whether the error-distribution of the anchor-point is Gaussian (values near the specified point are most probable) or continuous (all values within the specified window equally probable). Selecting 'Reference Chord' will put a reference chord constructed through 2 specified ages on the Concordia plot.
A16: ProbPlotHelp | B16: Data points from a single, Gaussian distribution will plot as a straight line with a slope of 1 on the Linearized Probability Diagram. You can plot the points as dots or as assigned 1-sigma errors. The assigned 1-sigma errors will have no effect on the location of the plotted points or regression line, however, and are generally irrelevant since the basic assumption of the plot is that all of the points have the same error. To plot the regression line for the linear trend by checking 'Construct', and select any subset of the data to include in the regression by specifying the lowest- and highest-ranked points to include. A probability plot of a regression's weighted residuals can be especially informative, as weighted residuals for a regression with an MSWD near 1 should not only yield a slope close to 1 (indicating a normal distribution of the residuals about the regression line or plane), but also have a mean value close to zero (x-y weighted means excepted). ISOPLOT WILL PLACE A SMALL PROBABILITY PLOT OF THE WEIGHTED RESIDUALS FOR ANY ISOPLOT REGRESSION ON THE SOURCE-DATA WORKSHEET IF YOU CHECK 'Insert Wtd Resids' ON THE REGRESSION-RESULTS DIALOG BOX.
A17: WtdHelp | B17: Weighted Average, Weighting by Assigned Errors Only: Data points are weighted by the inverse-square of their assigned errors. If the resulting 'probability of fit' (the probability that the assigned errors will yield at least the amount of scatter actually observed) is greater than the minimum value defined in the 'Numeric' preferences (default = 0.15), the error, you can choose either the '2-sigma internal' or '95% conf.' error of the weighted average. The former is the error propagated from the assigned data-point errors alone, while the latter multiplies the '2-sigma internal' error by the square root of the MSWD (thus using the actual scatter of the data rather than the predicted scatter) and Student's-t for N-1 degrees of freedom (to account for the fact that the true data-point errors are only an estimate, derived from the N data points). If the probability-of-fit is less than the assigned minimum value, only the '95% conf.' error is offered.
A18: ExtVarHelp | B18: Weighted Average, Weighting by Combination of Assigned Errors + Constant 'External' Error: The scatter of the data points is assumed to arise from a combination of the assigned data-point errors plus some unknown but constant 'External' error. The magnitude of the most-probable 'External' error is solved along with the weighted average, and the 95%-confidence error on the weighted mean involves Students-t for 2N-2 degrees of freedom.
A19: BiWtHelp | B19: Tukey's Biweight (Hoaglin, Mosteller, & Tukey, 1983, p. 345-349; John Wiley & Sons) ignores the assigned errors of the data points, instead weighting the points according to their scatter from an (iteratively-determined) mean. Points that scatter very far from this 'mean' (whose initial estimate is simply the Median) are de-weighted or even entirely ignored on a sliding scale that depends on the magnitude of their scatter from the 'mean'. This method is very resistant to outliers, tends to automatically self-weight points according to their true errors, and is very 'efficient' for data with a near-Gaussian distribution.
A20: MedianHelp | B20: The Median is the simplest, most outlier-resistant method for a measure of 'central tendency'. Half of the numbers of a set are less than the median, half are greater.
A21: 3dUhelp | B21: Select the type of 230Th/U isochron or plot that fits your input data. For an isochron calculation, your data must be one of the three XYZ types listed, unless you can assume that the 234U/238U is now and always has been in secular equilibrium (e.g. for an igneous rock). If you select X=230Th/238U Y=234U/238U Z=232Th/238U, you can have one or more evolution curves for specified initial 234/238 plotted by checking the appropriate box. For this plot, you can also request that the detrital-isotope corrected ('projected') data points be constructed as well as the uncorrected data points (the corrected points should plot on top of one another, rather than along a linear trend). For 230Th/238U-234U/238U data without 232Th/238U as a Z-axis, no isochron is possible, but evolution curves can still be requested.
A22: ProjPtsHelp | B22: Isoplot can construct the projection of the data points along the best-fit plane onto the 238U/206Pb-207Pb/206Pb plane. These projected points can be considered as the radiogenic portion of the measured data-points, and so permit visualization of the behavior of the data on the traditional, common-lead corrected, 2-dimensional Tera-Wasserburg diagram. You can choose to project the points down the best-fit plane in two ways: parallel to the 204Pb/206Pb axis, or through a specified 204Pb/206Pb value. If you think that the data represent a system with a single, isotopically homogeneous common-Pb, whose U/Pb system was disturbed by a single event, you should select the latter. In that case, enter your best guess as to the true 204Pb/206Pb of the common Pb. If you have no idea of the common 204Pb/206Pb, or if you think that the data represent a closed system with common Pb that is linearly dispersed along a secondary isochron, select the first option described above.
A23: YoungestDetritalHelp | B23: The input range must consist of 2 columns containing the ages and age errors of a suite of dates on single detrital grains (usually zircon). If invoked via a toolbar button, input errors are assumed to be 1-sigma absolute unless column headers for the input range indicate otherwise. The algorithm requires that the input age-errors be reliable and normally-distributed, and that the analyzed grains be free of contamination. The output age indicates the age and confidence limits of the youngest crystal of the suite (though not necessarily which of the grains is, in fact, the youngest). The algorithm uses a 10,000-trial Monte Carlo simulation, with the distribution of the simulations shown in the histogram placed to the right of the input data. Given the assumptions indicated above, this approach seems to be the only (statistically and logically) valid one.

Sheet DialogsWin
A1: Type | B1: Count | C1: Name | D1: Left | E1: Top | F1: Width | G1: Height | H1: FontName | I1: FontSize | J1: FontBold | K1: FontItalic
A2: IsoSetup
A3: TextBoxes | B3: 2 | C3: AuthorDate | D3: 173.25 | E3: 340.5 | F3: 279.75 | G3: 12 | H3: Arial | I3: 8 | J3: FALSE | K3: FALSE
C4: VersionText | D4: 450 | E4: 340.5 | F4: 73.5 | G4: 12 | H4: Arial | I4: 8 | J4: FALSE | K4: FALSE
A5: Shapes | B5: 43 | C5: Dialog 1 | D5: 168 | E5: 120.75 | F5: 366 | G5: 231
C6: bCancel | D6: 483.75 | E6: 168 | F6: 43.5 | G6: 15.75
C7: bConsts | D7: 454.5 | E7: 222.75 | F7: 52.5 | G7: 15.75
C8: bGrafix | D8: 454.5 | E8: 246.75 | F8: 52.5 | G8: 15.75
C9: bOK | D9: 483.75 | E9: 141.75 | F9: 43.5 | G9: 15.75
C10: cAnchored | D10: 243 | E10: 318 | F10: 66.75 | G10: 17.25
C11: cAutoSc | D11: 243 | E11: 302.25 | F11: 63.75 | G11: 17.25
C12: cCalculate | D12: 171.75 | E12: 302.25 | F12: 60 | G12: 17.25
C13: cColor | D13: 243 | E13: 286.5 | F13: 69 | G13: 17.25
C14: cConcAge | D14: 300.75 | E14: 147.75 | F14: 62.25 | G14: 17.25
C15: cPlot | D15: 171.75 | E15: 286.5 | F15: 54.75 | G15: 17.25
C16: cRobust | D16: 171.75 | E16: 318.75 | F16: 63 | G16: 17.25
C17: cShapes | D17: 301.5 | E17: 253.5 | F17: 47.25 | G17: 17.25
C18: dIsoType | D18: 177.75 | E18: 162 | F18: 120 | G18: 15.75
C19: dSymbClr | D19: 305.25 | E19: 238.5 | F19: 83.25 | G19: 15.75
C20: dSymbol | D20: 305.25 | E20: 219 | F20: 83.25 | G20: 15.75
C21: eRange | D21: 324 | E21: 299.25 | F21: 97.5 | G21: 14.25
C22: gAbs | D22: 236.25 | E22: 220.5 | F22: 61.5 | G22: 42
C23: gAction | D23: 171.75 | E23: 278.25 | F23: 68.25 | G23: 60
C24: gErrors | D24: 173.25 | E24: 209.25 | F24: 126 | G24: 63
C25: gNdim | D25: 366.75 | E25: 142.5 | F25: 47.25 | G25: 42
C26: gOptions | D26: 430.5 | E26: 209.25 | F26: 100.5 | G26: 63
C27: gOther | D27: 240 | E27: 278.25 | F27: 75 | G27: 60
C28: gPlanar | D28: 414 | E28: 142.5 | F28: 59.25 | G28: 42
C29: gPlotType | D29: 171.75 | E29: 142.5 | F29: 195 | G29: 57.75
C30: gRangeExp | D30: 315.75 | E30: 278.25 | F30: 215.25 | G30: 60
C31: gSig | D31: 175.5 | E31: 220.5 | F31: 54.75 | G31: 42
C32: gSymbols | D32: 300 | E32: 209.25 | F32: 128.25 | G32: 63
C33: InvertPlot | D33: 172.5 | E33: 181.5 | F33: 130.5 | G33: 17.25
C34: lRange | D34: 342.75 | E34: 283.5 | F34: 60 | G34: 14.25
C35: lRangeExp | D35: 423.75 | E35: 279 | F35: 105 | G35: 51.75
C36: lSymbClr | D36: 392.25 | E36: 238.5 | F36: 27.75 | G36: 12.75
C37: lSymbol | D37: 392.25 | E37: 221.25 | F37: 33 | G37: 13.5
C38: o1sigma | D38: 174 | E38: 224.25 | F38: 59.25 | G38: 17.25
C39: o2D | D39: 368.25 | E39: 147.75 | F39: 42 | G39: 17.25
C40: o2sigma | D40: 174 | E40: 242.25 | F40: 57.75 | G40: 17.25
C41: o3D | D41: 368.25 | E41: 163.5 | F41: 42 | G41: 17.25
C42: oAbsolute | D42: 242.25 | E42: 224.25 | F42: 53.25 | G42: 17.25
C43: oInverse | D43: 301.5 | E43: 180 | F43: 54 | G43: 17.25
C44: oLinear3D | D44: 414 | E44: 147.75 | F44: 54 | G44: 17.25
C45: oNormal | D45: 301.5 | E45: 164.25 | F45: 54 | G45: 17.25
C46: oPercent | D46: 242.25 | E46: 241.5 | F46: 53.25 | G46: 17.25
C47: oPlanar3D | D47: 414 | E47: 163.5 | F47: 54 | G47: 17.25
A48: ProbPlot
A49: Shapes | B49: 21 | C49: bCancel | D49: 388.5 | E49: 70 | F49: 52.5 | G49: 15.75
C50: bHelp | D50: 388.5 | E50: 94.5 | F50: 52.5 | G50: 15.75
C51: bOK | D51: 388.5 | E51: 47.25 | F51: 52.5 | G51: 15.75
C52: cInclStats | D52: =D61+F61-F52-5 -> 292.5 | E52: =E53 -> 234 | F52: 110 | G52: =G53 -> 16.5
C53: cRegression | D53: 164.25 | E53: 234 | F53: 70 | G53: 16.5
C54: Dialog 1 | D54: 152.25 | E54: 26.25 | F54: 294 | G54: 296
C55: eFirst | D55: 165.75 | E55: 260.25 | F55: 42 | G55: 15.75
C56: eLast | D56: 165.75 | E56: 283.5 | F56: 42 | G56: 15.75
C57: eSigma | D57: 170.25 | E57: 179.25 | F57: 42 | G57: 15.75
C58: eYaxis | D58: 292.5 | E58: 68.25 | F58: 73.5 | G58: 15.75
C59: gErrBarSig | D59: 157.5 | E59: 120.75 | F59: =F61 -> 250 | G59: 84
C60: gPlotAs | D60: 159 | E60: 52.5 | F60: 124.5 | G60: 56.25
C61: gRegression | D61: 157.5 | E61: 221.25 | F61: 250 | G61: 88.5
C62: lFirst | D62: 213 | E62: 261 | F62: 187.5 | G62: 17.25
C63: lLast | D63: 213 | E63: 283.5 | F63: 187.5 | G63: 18.75
C64: lSigma | D64: 216 | E64: 180.75 | F64: 172.5 | G64: 13.5
C65: lYaxis | D65: 302.25 | E65: 86.25 | F65: 65.25 | G65: 13.5
C66: oDots | D66: 165 | E66: 63 | F66: 89.25 | G66: 16.5
C67: oErrBars | D67: 165 | E67: 84.75 | F67: 111 | G67: 17.25
C68: oFromData | D68: 165.75 | E68: 132 | F68: 178.5 | G68: 18
C69: oUserSpec | D69: 165.75 | E69: 154.5 | F69: 136.5 | G69: 17.25
A70: ConcAge
A71: TextBoxes | B71: 5 | C71: t1sAP | D71: 359.25 | E71: 94.5 | F71: 68.25 | G71: 15.75 | I71: 11 | J71: FALSE | K71: FALSE | L71: t1sAP
C72: t2sAP | D72: 359.25 | E72: 110.25 | F72: 73.5 | G72: 15.75 | I72: 11 | J72: FALSE | K72: FALSE | L72: t2sAP
C73: tNLE | D73: 242.25 | E73: 57.75 | F73: 102 | G73: 15.75 | I73: 11 | J73: TRUE | K73: FALSE | L73: tNLE
C74: tTsM | D74: 359.25 | E74: 126 | F74: 126 | G74: 15.75 | I74: 11 | J74: FALSE | K74: FALSE | L74: tTsM
C75: tWLE | D75: 116.25 | E75: 57.75 | F75: 94.5 | G75: 15.75 | I75: 11 | J75: TRUE | K75: FALSE | L75: tWLE
A76: Shapes | B76: 47 | C76: bCancel | D76: 435.75 | E76: 77.25 | F76: 52.5 | G76: 15.75
C77: bCaveats | D77: 435.75 | E77: 99.75 | F77: 52.5 | G77: 15.75
C78: bOK | D78: 435.75 | E78: 52.5 | F78: 52.5 | G78: 15.75
C79: cShowRes | D79: 96.75 | E79: 273 | F79: 131.25 | G79: 16.5
C80: Dialog 1 | D80: 93 | E80: 36.75 | F80: 405.75 | G80: 259.5
C81: gConcBand | D81: 233.25 | E81: 267.75 | F81: 257.25 | G81: 26.25
C82: gConcEqNLE | D82: 105.75 | E82: 210 | F82: 120 | G82: 47.25
C83: gConcEqWLE | D83: 231 | E83: 210 | F83: 124.5 | G83: 47.25
C84: gConcNLE | D84: 234.75 | E84: 152.25 | F84: 122.25 | G84: 47.25
C85: gConcWLE | D85: 105.75 | E85: 152.25 | F85: 120 | G85: 47.25
C86: gNLE | D86: 234.75 | E86: 52.5 | F86: 122.25 | G86: 89.25
C87: gShowAge | D87: 362.25 | E87: 152.25 | F87: 129.75 | G87: 47.25
C88: gShowAt | D88: 362.25 | E88: 199.5 | F88: 129.75 | G88: 57.75
C89: gWLE | D89: 102.75 | E89: 52.5 | F89: 123 | G89: 89.25
C90: Label 38 | D90: 114 | E90: 76 | F90: 27 | G90: 15.75
C91: Label 39 | D91: 240 | E91: 76 | F91: 27 | G91: 15.75
C92: lAge1sigNLE | D92: 274 | E92: 90 | F92: 72 | G92: 15.75
C93: lAge1sigWLE | D93: 146 | E93: 90 | F93: 72 | G93: 15.75
C94: lAge2sigNLE | D94: 274 | E94: 106 | F94: 72 | G94: 15.75
C95: lAge2sigWLE | D95: 146 | E95: 106 | F95: 72 | G95: 15.75
C96: lAge95NLE | D96: 274 | E96: 122 | F96: 72 | G96: 15.75
C97: lAge95WLE | D97: 146 | E97: 122 | F97: 72 | G97: 15.75
C98: lAgeNLE | D98: 272 | E98: 76 | F98: 72 | G98: 15.75
C99: lAgeWLE | D99: 146 | E99: 77 | F99: 72 | G99: 15.75
C100: lM_conc_nle | D100: 258 | E100: 163 | F100: 42 | G100: 15.75
C101: lM_conc_wle | D101: 132 | E101: 163 | F101: 42 | G101: 15.75
C102: lM_ConcEq_nle | D102: 258 | E102: 221 | F102: 42 | G102: 15.75
C103: lM_ConcEq_wle | D103: 132 | E103: 221 | F103: 42 | G103: 15.75
C104: lMswdConcEqNLE | D104: 294 | E104: 221.25 | F104: 52.5 | G104: 15.75
C105: lMswdConcEqWLE | D105: 168 | E105: 221.25 | F105: 47.25 | G105: 15.75
C106: lMswdConcNLE | D106: 295.5 | E106: 162.75 | F106: 46.5 | G106: 15.75
C107: lMswdConcWLE | D107: 169.5 | E107: 162.75 | F107: 47.25 | G107: 15.75
C108: lP_conc_nle | D108: 243 | E108: 178 | F108: 51 | G108: 15.75
C109: lP_conc_wle | D109: 118 | E109: 178 | F109: 51 | G109: 15.75
C110: lP_ConcEq_nle | D110: 243 | E110: 238 | F110: 51 | G110: 15.75
C111: lP_ConcEq_wle | D111: 118 | E111: 238 | F111: 51 | G111: 15.75
C112: lProbConcEqNLE | D112: 294 | E112: 237 | F112: 60 | G112: 15.75
C113: lProbConcEqWLE | D113: 168 | E113: 237 | F113: 60 | G113: 15.75
C114: lProbConcNLE | D114: 295.5 | E114: 178.5 | F114: 60 | G114: 15.75
C115: lProbConcWLE | D115: 168.5 | E115: 178.5 | F115: 60 | G115: 15.75
C116: o1sigma | D116: 367.5 | E116: 204.75 | F116: 105 | G116: 16.5
C117: o2sigma | D117: 367.5 | E117: 221.25 | F117: 105 | G117: 17.25
C118: o95conf | D118: 367.5 | E118: 237 | F118: 105 | G118: 17.25
C119: oBehind | D119: 243.75 | E119: 273 | F119: 120.75 | G119: 16.5
C120: oFront | D120: 359.25 | E120: 273 | F120: 120.75 | G120: 16.5
C121: oNLE | D121: 367.5 | E121: 176.25 | F121: 122.25 | G121: 16.5
C122: oWLE | D122: 367.5 | E122: 160.5 | F122: 121.5 | G122: 16.5
A123: YorkRes
A124: Shapes | B124: 39 | C124: bCancel | D124: 378 | E124: 94.5 | F124: 40 | G124: 20
C125: bOK | D125: 378 | E125: 63 | F125: 40 | G125: 20
C126: cAddWtdResids | D126: 170 | E126: 278.25 | F126: 126 | G126: 17.25
C127: cPlotErrEnv | D127: 45 | E127: 278.25 | F127: 115.5 | G127: 16.5
C128: cShowRes | D128: 44.25 | E128: 257 | F128: 126 | G128: 17.25
C129: Dialog 1 | D129: 39.75 | E129: 44.25 | F129: 390 | G129: 265
C130: gRes | D130: 48 | E130: 65.25 | F130: 320.25 | G130: 135
C131: gXinter | D131: 48 | E131: 200 | F131: 320.25 | G131: 36.75
C132: i95 | D132: 252.75 | E132: 144 | F132: 114.75 | G132: 17.25
C133: iap | D133: 252.75 | E133: 112.5 | F133: 110.25 | G133: 15.75
C134: iis | D134: 252.75 | E134: 128.25 | F134: 110.25 | G134: 15.75
C135: int | D135: 252.75 | E135: 91.5 | F135: 105 | G135: 15.75
C136: Label 15 | D136: 79.5 | E136: 170.25 | F136: 31.5 | G136: 15.75
C137: Label 20 | D137: 66.75 | E137: 202.5 | F137: 118.5 | G137: 15.75
C138: Label 22 | D138: 66 | E138: 217.5 | F138: 135 | G138: 13.5
C139: Label 4 | D139: 168.75 | E139: 68.25 | F139: 36.75 | G139: 15.75
C140: Label 42 | D140: 107.25 | E140: 91.5 | F140: 42 | G140: 14.25
C141: Label 5 | D141: 263.25 | E141: 68.25 | F141: 73.5 | G141: 15.75
C142: Label 6 | D142: 53.25 | E142: 112.5 | F142: 85.5 | G142: 15.75
C143: Label 7 | D143: 53.25 | E143: 128.25 | F143: 94.5 | G143: 15.75
C144: Label 8 | D144: 53.25 | E144: 144 | F144: 88.5 | G144: 13.5
C145: Line 38 | D145: 49.5 | E145: 86.25 | F145: 318.75 | G145: 0
C146: Line 39 | D146: 48 | E146: 107.25 | F146: 320.25 | G146: 0
C147: Line 40 | D147: 49.5 | E147: 165 | F147: 318.75 | G147: 0
C148: Line 41 | D148: 247.5 | E148: 65.25 | F148: 0 | G148: 99.75
C149: Line 43 | D149: 153 | E149: 65.25 | F149: 0 | G149: 99.75
C150: lMP | D150: 174.75 | E150: 261.75 | F150: 132 | G150: 15
C151: lXbar | D151: 107.25 | E151: 170.25 | F151: 94.5 | G151: 15.75
C152: lYbar | D152: 234 | E152: 170.25 | F152: 105 | G152: 15.75
C153: MonteCarlo | D153: 290 | E153: 280 | F153: 105 | G153: 22
C154: NoLambdaErrs | D154: 52.5 | E154: 238.5 | F154: 273 | G154: 15.75
C155: RhoSI | D155: 78.75 | E155: 183.75 | F155: 262.5 | G155: 10.5
C156: s95 | D156: 158.25 | E156: 144 | F156: 88.5 | G156: 17.25
C157: sap | D157: 158.25 | E157: 112.5 | F157: 84 | G157: 15.75
C158: sis | D158: 158.25 | E158: 128.25 | F158: 84 | G158: 15.75
C159: slp | D159: 158.25 | E159: 90 | F159: 75 | G159: 15.75
C160: xint | D160: 207 | E160: 202.5 | F160: 134.25 | G160: 12.75
C161: xinterr | D161: 207 | E161: 217.5 | F161: 160.5 | G161: 14.25
C162: YbarEq | D162: 205.5 | E162: 170.25 | F162: 31.5 | G162: 15.75
A163: IsoRes
A164: TextBoxes | B164: 1 | C164: tSuggestMC | D164: 55.5 | E164: 154 | F164: 213.75 | G164: 14.25 | H164: Arial | I164: 9 | J164: FALSE | K164: FALSE | R164: 55.5 | S164: 154 | T164: 213.75 | U164: 14.25 | V164: Arial
A165: Shapes | B165: 48 | C165: bCancel | D165: 333.75 | E165: 61.5 | F165: 47.25 | G165: 20.25 | R165: 333.75 | S165: 61.5 | T165: 47.25 | U165: 20.25
C166: bDetails | D166: 330.75 | E166: 98.25 | F166: 51.75 | G166: 18 | R166: 330.75 | S166: 98.25 | T166: 51.75 | U166: 18
C167: bHelp | D167: 330.75 | E167: 123 | F167: 51.75 | G167: 18 | R167: 330.75 | S167: 123 | T167: 51.75 | U167: 18
C168: bOK | D168: 333.75 | E168: 31.5 | F168: 47.25 | G168: 21 | R168: 333.75 | S168: 31.5 | T168: 47.25 | U168: 21
C169: cAddWtdResids | D169: 220.5 | E169: 167 | F169: 141.75 | G169: 17.25 | R169: 220.5 | S169: 167 | T169: 141.75 | U169: 17.25
C170: cHisto | D170: 62.25 | E170: 340.5 | F170: 162.75 | G170: 17.25 | R170: 62.25 | S170: 340.5 | T170: 162.75 | U170: 17.25
C171: cLIgtZero | D171: 72 | E171: 318.75 | F171: 189.75 | G171: 17.25 | R171: 72 | S171: 318.75 | T171: 189.75 | U171: 17.25
C172: cMC | D172: 58.5 | E172: 287.25 | F172: 205.5 | G172: 17.25 | R172: 58.5 | S172: 287.25 | T172: 205.5 | U172: 17.25
A173: ─ | C173: cShowRes | D173: 51 | E173: 167 | F173: 117 | G173: 17.25 | R173: 51 | S173: 167 | T173: 117 | U173: 17.25
C174: cWLE | D174: 63 | E174: 238.5 | F174: 210 | G174: 17.25 | R174: 63 | S174: 238.5 | T174: 210 | U174: 17.25
C175: cWLE_MC | D175: 72 | E175: 303 | F175: 179.25 | G175: 17.25 | R175: 72 | S175: 303 | T175: 179.25 | U175: 17.25
C176: Dialog 1 | D176: 47.25 | E176: 0 | F176: 341.25 | G176: 404.25 | R176: 47.25 | S176: 0 | T176: 341.25 | U176: 404.25
C177: eNbins | D177: 323.25 | E177: 347.25 | F177: 26.25 | G177: 15 | R177: 323.25 | S177: 347.25 | T177: 26.25 | U177: 15
C178: eNtrials | D178: 307.5 | E178: 295.5 | F178: 42.75 | G178: 15 | R178: 307.5 | S178: 295.5 | T178: 42.75 | U178: 15
C179: gAgeTicks | D179: 52.5 | E179: 189 | F179: 294 | G179: 42 | R179: 52.5 | S179: 189 | T179: 294 | U179: 42
C180: gHisto | D180: 57 | E180: 337.5 | F180: 319.5 | G180: 59.25 | R180: 57 | S180: 337.5 | T180: 319.5 | U180: 59.25
C181: gLambdaErrs | D181: 52.5 | E181: 234 | F181: 294 | G181: 44.25 | R181: 52.5 | S181: 234 | T181: 294 | U181: 44.25
C182: gLowerInter | D182: 57.75 | E182: 54 | F182: 250 | G182: 21 | R182: 57.75 | S182: 54 | T182: 250 | U182: 21
C183: gMC | D183: 51.75 | E183: 283.5 | F183: 330 | G183: 118.5 | R183: 51.75 | S183: 283.5 | T183: 330 | U183: 118.5
C184: gMswd | D184: 84 | E184: 96 | F184: 147 | G184: 42 | R184: 84 | S184: 96 | T184: 147 | U184: 42
C185: gPlotWhere | D185: 188 | E185: 358 | F185: 118 | G185: 36 | R185: 188 | S185: 358 | T185: 118 | U185: 36
C186: gUpperInter | D186: 57.75 | E186: 33 | F186: 250 | G186: 21 | R186: 57.75 | S186: 33 | T186: 250 | U186: 21
C187: gWhichInter | D187: 64 | E187: 358 | F187: 107 | G187: 36 | R187: 64 | S187: 358 | T187: 107 | U187: 36
C188: lAge | D188: 64.5 | E188: 36 | F188: 98.25 | G188: 15.75 | R188: 64.5 | S188: 36 | T188: 98.25 | U188: 15.75
C189: lAgeLabel | D189: 165.75 | E189: 36 | F189: 135 | G189: 15 | R189: 165.75 | S189: 36 | T189: 135 | U189: 15
C190: lIntercept | D190: 64.5 | E190: 57 | F190: 100.5 | G190: 15.75 | R190: 64.5 | S190: 57 | T190: 100.5 | U190: 15.75
C191: lInterLabel | D191: 165.75 | E191: 57 | F191: 135 | G191: 15.75 | R191: 165.75 | S191: 57 | T191: 135 | U191: 15.75
C192: lMSWD | D192: 131.25 | E192: 108.74 | F192: 36.75 | G192: 15.75 | R192: 131.25 | S192: 108.74 | T192: 36.75 | U192: 15.75
C193: lMSWDval | D193: 176.25 | E193: 108.74 | F193: 52.5 | G193: 15.75 | R193: 176.25 | S193: 108.74 | T193: 52.5 | U193: 15.75
C194: lNbins | D194: 298.5 | E194: 347.25 | F194: 25.5 | G194: 18 | R194: 298.5 | S194: 347.25 | T194: 25.5 | U194: 18
C195: lNpts | D195: 126 | E195: 96 | F195: 42 | G195: 15.75 | R195: 126 | S195: 96 | T195: 42 | U195: 15.75
C196: lNptsVal | D196: 176.25 | E196: 96 | F196: 47.25 | G196: 15.75 | R196: 176.25 | S196: 96 | T196: 47.25 | U196: 15.75
C197: lNtrials | D197: 276.75 | E197: 295.5 | F197: 36 | G197: 15.75 | R197: 276.75 | S197: 295.5 | T197: 36 | U197: 15.75
C198: lPbGrowth | D198: 57.75 | E198: 140 | F198: 295.5 | G198: 20.25 | R198: 57.75 | S198: 140 | T198: 295.5 | U198: 20.25
C199: lPbIsoAge | D199: 57.75 | E199: 75 | F199: 257.25 | G199: 15.75 | R199: 57.75 | S199: 75 | T199: 257.25 | U199: 15.75
C200: lProb | D200: 97.5 | E200: 120 | F200: 66.75 | G200: 15 | R200: 97.5 | S200: 120 | T200: 66.75 | U200: 15
... 738 more rows

Sheet DialogsMac
A1: Type | B1: Count | C1: Name | D1: Left | E1: Top | F1: Width | G1: Height | H1: FontName | I1: FontSize | J1: FontBold | K1: FontItalic
A2: IsoRes
A3: TextBoxes | B3: 1 | C3: tSuggestMC | D3: 52 | E3: 192 | F3: 244 | G3: 16 | H3: Arial | I3: 9 | J3: FALSE | K3: FALSE
A4: Shapes | B4: 48 | C4: bCancel | D4: 360 | E4: 90 | F4: 66 | G4: 30
C5: bDetails | D5: 360 | E5: 134 | F5: 66 | G5: 30
C6: bHelp | D6: 360 | E6: 173 | F6: 66 | G6: 30
C7: bOK | D7: 360 | E7: 48 | F7: 66 | G7: 30
C8: cAddWtdResids | D8: 251 | E8: 211 | F8: 185 | G8: 17
C9: cHisto | D9: 64 | E9: 481 | F9: 248 | G9: 17
C10: cLIgtZero | D10: 61 | E10: 419 | F10: 245 | G10: 17
C11: cMC | D11: 61 | E11: 399 | F11: 235 | G11: 17
C12: cShowRes | D12: 47 | E12: 211 | F12: 150 | G12: 17
C13: cWLE | D13: 74 | E13: 250 | F13: 260 | G13: 17
C14: cWLE_MC | D14: 61 | E14: 440 | F14: 235 | G14: 17
C15: Dialog 1 | D15: 42 | E15: 6 | F15: 402 | G15: 587
C16: eNbins | D16: 358 | E16: 481 | F16: 30 | G16: 20
C17: eNtrials | D17: 354 | E17: 405 | F17: 49 | G17: 18
C18: gAgeTicks | D18: 66 | E18: 313 | F18: 336 | G18: 66
C19: gHisto | D19: 60 | E19: 475 | F19: 353 | G19: 101
C20: gLambdaErrs | D20: 64 | E20: 246 | F20: 336 | G20: 54
C21: gLowerInter | D21: 52.5 | E21: 81 | F21: 284.25 | G21: 29.25
C22: gMC | D22: 48 | E22: 396 | F22: 377 | G22: 186
C23: gMswd | D23: 80 | E23: 134 | F23: 168 | G23: 57
C24: gPlotWhere | D24: 234 | E24: 512 | F24: 164 | G24: 58
C25: gUpperInter | D25: 52.5 | E25: 53 | F25: 284.25 | G25: 29.25
C26: gWhichInter | D26: 74 | E26: 514 | F26: 143 | G26: 56
C27: lAge | D27: 62 | E27: 58 | F27: 112 | G27: 18
C28: lAgeLabel | D28: 178 | E28: 60 | F28: 154 | G28: 17
C29: lIntercept | D29: 62 | E29: 89 | F29: 115 | G29: 18
C30: lInterLabel | D30: 178 | E30: 89 | F30: 154 | G30: 18
C31: lMSWD | D31: 141 | E31: 153 | F31: 42 | G31: 18
C32: lMSWDval | D32: 187 | E32: 153 | F32: 60 | G32: 18
C33: lNbins | D33: 318 | E33: 481 | F33: 42 | G33: 20
C34: lNpts | D34: 132 | E34: 137 | F34: 48 | G34: 18
C35: lNptsVal | D35: 187 | E35: 137 | F35: 54 | G35: 18
C36: lNtrials | D36: 306 | E36: 405 | F36: 54 | G36: 18
C37: lPbGrowth | D37: 54 | E37: 193 | F37: 338 | G37: 23
C38: lPbIsoAge | D38: 54 | E38: 113 | F38: 294 | G38: 18
C39: lProb | D39: 90 | E39: 169 | F39: 90 | G39: 18
C40: lProbVal | D40: 187 | E40: 169 | F40: 57 | G40: 16
C41: lTopLabel | D41: 60 | E41: 27 | F41: 366 | G41: 21
C42: oBehind | D42: 74 | E42: 275 | F42: 156 | G42: 17
C43: oCircles | D43: 76 | E43: 326 | F43: 222 | G43: 17
C44: oDataSheet | D44: 242 | E44: 516 | F44: 156 | G44: 17
C45: oFront | D45: 218 | E45: 275 | F45: 162 | G45: 17
C46: oLines | D46: 76 | E46: 350 | F46: 310 | G46: 17
C47: oLower | D47: 80 | E47: 518 | F47: 126 | G47: 17
C48: oSeparateSheet | D48: 242 | E48: 540 | F48: 144 | G48: 17
C49: oUpper | D49: 80 | E49: 542 | F49: 132 | G49: 17
C50: sNbins | D50: 394 | E50: 483 | F50: 10 | G50: 18
C51: sNtrials | D51: 406 | E51: 405 | F51: 10 | G51: 18
A52: 3dLinRes
A53: TextBoxes | B53: 2 | C53: tY | D53: 165 | E53: 70 | F53: 102 | G53: 23 | H53: Times New Roman | I53: 14 | J53: TRUE | K53: TRUE
C54: tZ | D54: 265 | E54: 70 | F54: 102 | G54: 23 | H54: Times New Roman | I54: 14 | J54: TRUE | K54: TRUE
A55: Shapes | B55: 23 | C55: Dialog 1 | D55: 150 | E55: 40 | F55: 320 | G55: 272
C56: bOK | D56: 397 | E56: 67 | F56: 60 | G56: 24
C57: bCancel | D57: 397 | E57: 102 | F57: 60 | G57: 24
C58: a_ | D58: 168 | E58: 102 | F58: 186 | G58: 18
C59: b_ | D59: 168 | E59: 120 | F59: 186 | G59: 18
C60: c_ | D60: 168 | E60: 138 | F60: 186 | G60: 18
C61: d_ | D61: 168 | E61: 156 | F61: 186 | G61: 18
C62: Group Box 10 | D62: 158 | E62: 96 | F62: 202 | G62: 84
C63: Group Box 11 | D63: 158 | E63: 198 | F63: 202 | G63: 78
C64: rhoAB | D64: 168 | E64: 210 | F64: 84 | G64: 18
C65: rhoAC | D65: 168 | E65: 228 | F65: 84 | G65: 18
C66: rhoAD | D66: 168 | E66: 246 | F66: 84 | G66: 18
C67: rhoBC | D67: 270 | E67: 210 | F67: 84 | G67: 18
C68: rhoBD | D68: 270 | E68: 228 | F68: 84 | G68: 18
C69: rhoCD | D69: 270 | E69: 246 | F69: 84 | G69: 18
C70: lMSWDcap | D70: 390 | E70: 202 | F70: 45 | G70: 18
C71: lMSWD | D71: 392 | E71: 216 | F71: 56 | G71: 18
C72: lProbCap | D72: 382 | E72: 240 | F72: 69 | G72: 18
C73: lProb | D73: 394 | E73: 255 | F73: 56 | G73: 18
C74: gMprob | D74: 370 | E74: 198 | F74: 92 | G74: 79
C75: cShowRes | D75: 154 | E75: 287 | F75: 150 | G75: 17
C76: cAddWtdResids | D76: 303 | E76: 287 | F76: 163 | G76: 17
C77: lErrLev | D77: 366 | E77: 164 | F77: 108 | G77: 18
A78: 3dU
A79: TextBoxes | B79: 4 | C79: Text 14 | D79: 99 | E79: 106 | F79: 21 | G79: 18 | H79: Arial | I79: 11 | J79: TRUE | K79: FALSE
C80: Text 15 | D80: 162 | E80: 106 | F80: 21 | G80: 18 | H80: Arial | I80: 11 | J80: TRUE | K80: FALSE
C81: Text 16 | D81: 229 | E81: 106 | F81: 20 | G81: 18 | H81: Arial | I81: 11 | J81: TRUE | K81: FALSE
C82: Isoch2d | D82: 61 | E82: 230 | F82: 137 | G82: 16 | H82: Arial | I82: 9 | J82: TRUE | K82: FALSE
A83: Shapes | B83: 16 | C83: Dialog 1 | D83: 37 | E83: 63 | F83: 437 | G83: 238
C84: bOK | D84: 397 | E84: 89 | F84: 60 | G84: 21
C85: bCancel | D85: 397 | E85: 123 | F85: 60 | G85: 21
C86: oType1 | D86: 51 | E86: 132 | F86: 240 | G86: 17
C87: oType2 | D87: 51 | E87: 154 | F87: 240 | G87: 17
C88: oType3 | D88: 51 | E88: 178 | F88: 238 | G88: 17
C89: lIsoExp | D89: 45 | E89: 84 | F89: 283 | G89: 15
C90: Line 20 | D90: 73 | E90: 124 | F90: 197 | G90: 0
C91: oTypeMinus1 | D91: 51 | E91: 205 | F91: 239 | G91: 17
C92: cInclEvo | D92: 312 | E92: 187 | F92: 149 | G92: 17
C93: cPlotProj | D93: 312 | E93: 210 | F93: 142 | G93: 17
C94: gOptions | D94: 306 | E94: 174 | F94: 159 | G94: 64
C95: oType1twoD | D95: 51 | E95: 248 | F95: 202 | G95: 17
C96: oType4 | D96: 51 | E96: 271 | F96: 202 | G96: 17
C97: rec2Dbox | D97: 45 | E97: 238 | F97: 211 | G97: 57
C98: bHelp | D98: 397 | E98: 270 | F98: 60 | G98: 21
A99: Add Points
A100: Shapes | B100: 5 | C100: Dialog 1 | D100: 154 | E100: 54 | F100: 309 | G100: 130
C101: bAddPts | D101: 171 | E101: 86 | F101: 81 | G101: 24
C102: bCancel | D102: 171 | E102: 138 | F102: 81 | G102: 24
C103: lAddPts | D103: 264 | E103: 84 | F103: 192 | G103: 31
C104: lCancel | D104: 264 | E104: 132 | F104: 186 | G104: 52
A105: Anch
A106: Shapes | B106: 15 | C106: Anchored | D106: 378 | E106: 108 | F106: 264 | G106: 270
C107: bCancel | D107: 568 | E107: 162 | F107: 64 | G107: 19
C108: bOK | D108: 568 | E108: 132 | F108: 64 | G108: 19
C109: lAge | D109: 461 | E109: 234 | F109: 138 | G109: 18
C110: eAge | D110: 396 | E110: 234 | F110: 60 | G110: 16
C111: lAgeErr | D111: 461 | E111: 258 | F111: 120 | G111: 18
C112: eAgeErr | D112: 396 | E112: 258 | F112: 60 | G112: 16
C113: Group Box 6 | D113: 395 | E113: 138 | F113: 133 | G113: 84
C114: oCommPb | D114: 401 | E114: 150 | F114: 113 | G114: 17
C115: oAge | D115: 401 | E115: 171 | F115: 121 | G115: 17
C116: oRefChord | D116: 401 | E116: 196 | F116: 124 | G116: 17
C117: oContinuous | D117: 400 | E117: 315 | F117: 212 | G117: 17
C118: oGaussian | D118: 400 | E118: 340 | F118: 206 | G118: 17
C119: gMConly | D119: 389 | E119: 298 | F119: 236 | G119: 69
C120: bHelp | D120: 568 | E120: 192 | F120: 64 | G120: 19
A121: ArStepAge
A122: Shapes | B122: 26 | C122: Dialog 1 | D122: 210 | E122: 58 | F122: 480 | G122: 356
C123: bOK | D123: 620 | E123: 88 | F123: 60 | G123: 20
C124: bCancel | D124: 620 | E124: 124 | F124: 60 | G124: 20
C125: gCriteria | D125: 222 | E125: 208 | F125: 348 | G125: 98
C126: lCritSteps | D126: 230 | E126: 222 | F126: 329 | G126: 18
C127: lCritProb | D127: 230 | E127: 283 | F127: 270 | G127: 17
C128: lCritSlope | D128: 230 | E128: 243 | F128: 274 | G128: 16
C129: lAge | D129: 231 | E129: 104 | F129: 340 | G129: 16
C130: lMSWD | D130: 231 | E130: 124 | F130: 306 | G130: 18
C131: lSlope | D131: 231 | E131: 164 | F131: 322 | G131: 18
C132: lSteps | D132: 231 | E132: 144 | F132: 329 | G132: 18
C133: gResults | D133: 222 | E133: 90 | F133: 380 | G133: 98
C134: lCritOutliers | D134: 230 | E134: 264 | F134: 277 | G134: 15
C135: gFocus | D135: 576 | E135: 208 | F135: 105 | G135: 98
C136: oPlateau | D136: 581 | E136: 231 | F136: 93 | G136: 17
C137: oAll | D137: 581 | E137: 259 | F137: 90 | G137: 17
C138: cShowRes | D138: 219 | E138: 312 | F138: 155 | G138: 17
C139: ArLines | D139: 408 | E139: 312 | F139: 276 | G139: 17
C140: lInitial | D140: 415 | E140: 82 | F140: 170 | G140: 16
C141: cIsochron | D141: 418 | E141: 368 | F141: 132 | G141: 17
C142: cAgeSpectrum | D142: 226 | E142: 360 | F142: 84 | G142: 17
C143: cInset | D143: 226 | E143: 383 | F143: 168 | G143: 17
C144: gAgeSpectrum | D144: 222 | E144: 349 | F144: 186 | G144: 59
C145: gIsochron | D145: 414 | E145: 349 | F145: 151 | G145: 59
C146: lJay | D146: 423 | E146: 190 | F146: 156 | G146: 14
C147: bHelp | D147: 620 | E147: 168 | F147: 60 | G147: 24
A148: AxLab
A149: Shapes | B149: 19 | C149: Dialog 1 | D149: 138 | E149: 76 | F149: 294 | G149: 159
C150: lXlabel | D150: 150 | E150: 104 | F150: 80 | G150: 18
C151: eXlabel | D151: 221 | E151: 103 | F151: 126 | G151: 18
C152: lYlabel | D152: 180 | E152: 134 | F152: 37 | G152: 18
C153: eYlabel | D153: 221 | E153: 133 | F153: 126 | G153: 18
C154: lZlabel | D154: 189 | E154: 162 | F154: 42 | G154: 18
C155: eZlabel | D155: 231 | E155: 162 | F155: 126 | G155: 18
C156: lLambda1 | D156: 234 | E156: 163 | F156: 111 | G156: 18
C157: eLambda | D157: 244 | E157: 182 | F157: 81 | G157: 18
C158: lLambda2 | D158: 246 | E158: 202 | F158: 70 | G158: 18
C159: cInclHist | D159: 150 | E159: 146 | F159: 133 | G159: 17
C160: cAutoBins | D160: 150 | E160: 164 | F160: 90 | G160: 17
C161: cFilledBins | D161: 150 | E161: 183 | F161: 192 | G161: 17
C162: lBinStart | D162: 269 | E162: 206 | F162: 57 | G162: 18
C163: eBinStart | D163: 224 | E163: 206 | F163: 42 | G163: 18
C164: lBinNumWidth | D164: 198 | E164: 249 | F164: 121 | G164: 18
C165: eBinNumWidth | D165: 153 | E165: 249 | F165: 42 | G165: 18
C166: bOK | D166: 365 | E166: 96 | F166: 61 | G166: 24
C167: bCancel | D167: 365 | E167: 132 | F167: 61 | G167: 24
A168: Bracket
A169: TextBoxes | B169: 11 | C169: tTitle | D169: 6 | E169: 22 | F169: 399 | G169: 27 | H169: Arial | I169: 12 | J169: FALSE | K169: FALSE
C170: tStrat | D170: 13 | E170: 136 | F170: 22 | G170: 162 | H170: Arial | I170: 9 | J170: FALSE | K170: FALSE
C171: tDate | D171: 47 | E171: 94 | F171: 43 | G171: 20 | H171: Arial | I171: 10 | J171: FALSE | K171: FALSE
C172: tError | D172: 90 | E172: 93 | F172: 47 | G172: 21 | H172: Arial | I172: 10 | J172: FALSE | K172: FALSE
C173: tBest | D173: 142 | E173: 78 | F173: 53 | G173: 36 | H173: Arial | I173: 10 | J173: FALSE | K173: FALSE
C174: t95 | D174: 210 | E174: 78 | F174: 78 | G174: 36 | H174: Arial | I174: 10 | J174: FALSE | K174: TRUE
C175: tDelt | D175: 290 | E175: 60 | F175: 108 | G175: 54 | H175: Arial | I175: 10 | J175: FALSE | K175: FALSE
C176: tSigLev | D176: 87 | E176: 82 | F176: 54 | G176: 18 | I176: 10 | J176: FALSE | K176: FALSE
C177: tDelt95 | D177: 403 | E177: 78 | F177: 77 | G177: 36 | H177: Arial | I177: 10 | J177: FALSE | K177: TRUE
C178: tNum | D178: 49 | E178: 79 | F178: 44 | G178: 20 | H178: Arial | I178: 10 | J178: FALSE | K178: FALSE
C179: tTopBottom | D179: 138 | E179: 258 | F179: 176 | G179: 21 | H179: Arial | I179: 9 | J179: FALSE | K179: FALSE
A180: Shapes | B180: 84 | C180: Arrow | D180: 30 | E180: 120 | F180: 0 | G180: 150
C181: ba1 | D181: 258 | E181: 115 | F181: 42 | G181: 16
C182: ba2 | D182: 258 | E182: 135 | F182: 42 | G182: 16
C183: ba3 | D183: 258 | E183: 156 | F183: 42 | G183: 18
C184: ba4 | D184: 258 | E184: 176 | F184: 42 | G184: 16
C185: ba5 | D185: 258 | E185: 196 | F185: 42 | G185: 17
C186: ba6 | D186: 258 | E186: 217 | F186: 42 | G186: 15
C187: ba7 | D187: 258 | E187: 237 | F187: 42 | G187: 16
C188: ba8 | D188: 258 | E188: 256 | F188: 42 | G188: 16
C189: bCaveats | D189: 452 | E189: 366 | F189: 66 | G189: 22
C190: bda2 | D190: 447 | E190: 135 | F190: 42 | G190: 16
C191: bda3 | D191: 447 | E191: 156 | F191: 42 | G191: 16
C192: bda4 | D192: 447 | E192: 176 | F192: 42 | G192: 16
C193: bda5 | D193: 447 | E193: 196 | F193: 42 | G193: 16
C194: bda6 | D194: 447 | E194: 217 | F194: 42 | G194: 16
C195: bda7 | D195: 447 | E195: 237 | F195: 42 | G195: 16
C196: bda8 | D196: 447 | E196: 261 | F196: 42 | G196: 16
C197: bGo | D197: 455 | E197: 17 | F197: 58 | G197: 27
C198: Cancel | D198: 455 | E198: 57 | F198: 58 | G198: 21
C199: cShowChart | D199: 289 | E199: 310 | F199: 98 | G199: 17
C200: cShowRes | D200: 19 | E200: 366 | F200: 250 | G200: 17
... 710 more rows

Sheet DialogsMacX
A1: Type | B1: Count | C1: Name | D1: Left | E1: Top | F1: Width | G1: Height | H1: FontName | I1: FontSize | J1: FontBold | K1: FontItalic
A2: 3dLinRes
A3: TextBoxes | B3: 2 | C3: tY | D3: 165 | E3: 70 | F3: 102 | G3: 23 | H3: Times New Roman | I3: 14 | J3: TRUE | K3: TRUE | L3: Times New Roman | M3: 14 | N3: TRUE | O3: TRUE
C4: tZ | D4: 265 | E4: 70 | F4: 102 | G4: 23 | H4: Times New Roman | I4: 14 | J4: TRUE | K4: TRUE | L4: Times New Roman | M4: 14 | N4: TRUE | O4: TRUE
A5: Shapes | B5: 23 | C5: Dialog 1 | D5: 150 | E5: 40 | F5: 330 | G5: 272
C6: bCancel | D6: 409 | E6: 102 | F6: 65 | G6: 24
C7: bOK | D7: 409 | E7: 67 | F7: 65 | G7: 24
C8: cAddWtdResids | D8: 303 | E8: 285 | F8: 163 | G8: 17
C9: cShowRes | D9: 154 | E9: 285 | F9: 150 | G9: 17
C10: gMprob | D10: 370 | E10: 198 | F10: 98 | G10: 79
C11: Group Box 10 | D11: 158 | E11: 96 | F11: 202 | G11: 84
C12: Group Box 11 | D12: 158 | E12: 198 | F12: 202 | G12: 78
C13: Label 12 | D13: 168 | E13: 210 | F13: 84 | G13: 18
C14: Label 13 | D14: 168 | E14: 228 | F14: 84 | G14: 18
C15: Label 14 | D15: 168 | E15: 246 | F15: 84 | G15: 18
C16: Label 15 | D16: 270 | E16: 210 | F16: 84 | G16: 18
C17: Label 16 | D17: 270 | E17: 228 | F17: 84 | G17: 18
C18: Label 17 | D18: 270 | E18: 246 | F18: 84 | G18: 18
C19: Label 6 | D19: 168 | E19: 102 | F19: 186 | G19: 18
C20: Label 7 | D20: 168 | E20: 120 | F20: 186 | G20: 18
C21: Label 8 | D21: 168 | E21: 138 | F21: 186 | G21: 18
C22: Label 9 | D22: 168 | E22: 156 | F22: 186 | G22: 18
C23: lErrLev | D23: 369 | E23: 173 | F23: 108 | G23: 18
C24: lMSWD | D24: 392 | E24: 216 | F24: 56 | G24: 18
C25: lMSWDcap | D25: 390 | E25: 202 | F25: 45 | G25: 18
C26: lProb | D26: 394 | E26: 255 | F26: 56 | G26: 18
C27: lProbCap | D27: 382 | E27: 240 | F27: 69 | G27: 18
A28: 3dU
A29: TextBoxes | B29: 4 | C29: Text 14 | D29: 99 | E29: 106 | F29: 21 | G29: 18 | H29: Arial | I29: 11 | J29: TRUE | K29: FALSE
C30: Text 15 | D30: 162 | E30: 106 | F30: 21 | G30: 18 | H30: Arial | I30: 11 | J30: TRUE | K30: FALSE
C31: Text 16 | D31: 229 | E31: 106 | F31: 20 | G31: 18 | H31: Arial | I31: 11 | J31: TRUE | K31: FALSE
C32: Isoch2d | D32: 61 | E32: 234 | F32: 145 | G32: 16 | H32: Arial | I32: 9 | J32: TRUE | K32: FALSE
A33: Shapes | B33: 16 | C33: bCancel | D33: 397 | E33: 123 | F33: 71 | G33: 21
C34: bHelp | D34: 396 | E34: 279 | F34: 71 | G34: 21
C35: bOK | D35: 397 | E35: 90 | F35: 71 | G35: 20
C36: cInclEvo | D36: 310 | E36: 187 | F36: 149 | G36: 17
C37: cPlotProj | D37: 310 | E37: 210 | F37: 142 | G37: 17
C38: Dialog 1 | D38: 37 | E38: 63 | F38: 437 | G38: 249
C39: gOptions | D39: 306 | E39: 174 | F39: 162 | G39: 64
C40: Line 20 | D40: 73 | E40: 124 | F40: 197 | G40: 0
C41: lIsoExp | D41: 45 | E41: 84 | F41: 283 | G41: 15
C42: oType1 | D42: 51 | E42: 132 | F42: 240 | G42: 17
C43: oType1twoD | D43: 51 | E43: 252 | F43: 202 | G43: 17
C44: oType2 | D44: 51 | E44: 154 | F44: 240 | G44: 17
C45: oType3 | D45: 51 | E45: 178 | F45: 238 | G45: 17
C46: oType4 | D46: 51 | E46: 275 | F46: 202 | G46: 17
C47: oTypeMinus1 | D47: 51 | E47: 205 | F47: 239 | G47: 17
C48: rec2Dbox | D48: 45 | E48: 238 | F48: 211 | G48: 57
A49: Add Points
A50: Shapes | B50: 5 | C50: Dialog 1 | D50: 154 | E50: 54 | F50: 309 | G50: 130
C51: bAddPts | D51: 162 | E51: 86 | F51: 90 | G51: 24
C52: bCancel | D52: 162 | E52: 138 | F52: 90 | G52: 24
C53: lAddPts | D53: 264 | E53: 84 | F53: 192 | G53: 31
C54: lCancel | D54: 264 | E54: 132 | F54: 186 | G54: 52
A55: Anch
A56: Shapes | B56: 15 | C56: Anchored | D56: 378 | E56: 108 | F56: 244 | G56: 177
C57: bCancel | D57: 549 | E57: 162 | F57: 64 | G57: 19
C58: bOK | D58: 549 | E58: 132 | F58: 64 | G58: 19
C59: lAge | D59: 461 | E59: 234 | F59: 138 | G59: 18
C60: eAge | D60: 396 | E60: 234 | F60: 60 | G60: 16
C61: lAgeErr | D61: 461 | E61: 258 | F61: 120 | G61: 18
C62: eAgeErr | D62: 396 | E62: 258 | F62: 60 | G62: 16
C63: Group Box 6 | D63: 395 | E63: 138 | F63: 145 | G63: 84
C64: oCommPb | D64: 401 | E64: 150 | F64: 113 | G64: 17
C65: oAge | D65: 401 | E65: 173 | F65: 127 | G65: 17
C66: oRefChord | D66: 401 | E66: 196 | F66: 127 | G66: 17
C67: oContinuous | D67: 390 | E67: 303 | F67: 228 | G67: 17
C68: oGaussian | D68: 390 | E68: 327 | F68: 228 | G68: 17
C69: gMConly | D69: 384 | E69: 291 | F69: 236 | G69: 60
C70: bHelp | D70: 549 | E70: 203 | F70: 64 | G70: 19
A71: ArStepAge
A72: Shapes | B72: 26 | C72: ArLines | D72: 408 | E72: 314 | F72: 270 | G72: 17
C73: bCancel | D73: 636 | E73: 117 | F73: 66 | G73: 20
C74: bHelp | D74: 640 | E74: 162 | F74: 60 | G74: 24
C75: bOK | D75: 636 | E75: 84 | F75: 66 | G75: 20
C76: cAgeSpectrum | D76: 226 | E76: 360 | F76: 84 | G76: 17
C77: cInset | D77: 226 | E77: 384 | F77: 190 | G77: 17
C78: cIsochron | D78: 435 | E78: 368 | F78: 132 | G78: 17
C79: cShowRes | D79: 219 | E79: 314 | F79: 155 | G79: 17
C80: Dialog 1 | D80: 210 | E80: 58 | F80: 504 | G80: 360
C81: gAgeSpectrum | D81: 222 | E81: 349 | F81: 198 | G81: 59
C82: gCriteria | D82: 222 | E82: 208 | F82: 366 | G82: 98
C83: gFocus | D83: 595 | E83: 208 | F83: 105 | G83: 98
C84: gIsochron | D84: 431 | E84: 349 | F84: 151 | G84: 59
C85: gResults | D85: 222 | E85: 90 | F85: 392 | G85: 98
C86: lAge | D86: 231 | E86: 104 | F86: 350 | G86: 16
C87: lCritOutliers | D87: 230 | E87: 264 | F87: 277 | G87: 15
C88: lCritProb | D88: 230 | E88: 283 | F88: 270 | G88: 17
C89: lCritSlope | D89: 230 | E89: 243 | F89: 274 | G89: 16
C90: lCritSteps | D90: 230 | E90: 222 | F90: 352 | G90: 18
C91: lInitial | D91: 428 | E91: 82 | F91: 185 | G91: 16
C92: lJay | D92: 423 | E92: 190 | F92: 156 | G92: 18
C93: lMSWD | D93: 231 | E93: 124 | F93: 357 | G93: 20
C94: lSlope | D94: 231 | E94: 164 | F94: 357 | G94: 22
C95: lSteps | D95: 231 | E95: 144 | F95: 357 | G95: 24
C96: oAll | D96: 600 | E96: 259 | F96: 90 | G96: 17
C97: oPlateau | D97: 600 | E97: 231 | F97: 93 | G97: 17
A98: AxLab
A99: Shapes | B99: 19 | C99: Dialog 1 | D99: 138 | E99: 76 | F99: 294 | G99: 154
C100: bCancel | D100: 365 | E100: 132 | F100: 62 | G100: 24
C101: bOK | D101: 365 | E101: 96 | F101: 62 | G101: 24
C102: cAutoBins | D102: 150 | E102: 164 | F102: 79 | G102: 17
C103: cFilledBins | D103: 150 | E103: 183 | F103: 169 | G103: 17
C104: cInclHist | D104: 150 | E104: 146 | F104: 117 | G104: 17
C105: eBinNumWidth | D105: 153 | E105: 249 | F105: 42 | G105: 18
C106: eBinStart | D106: 224 | E106: 206 | F106: 42 | G106: 18
C107: eLambda | D107: 244 | E107: 182 | F107: 81 | G107: 18
C108: eXlabel | D108: 221 | E108: 103 | F108: 126 | G108: 18
C109: eYlabel | D109: 221 | E109: 133 | F109: 126 | G109: 18
C110: eZlabel | D110: 231 | E110: 162 | F110: 126 | G110: 18
C111: lBinNumWidth | D111: 198 | E111: 249 | F111: 121 | G111: 18
C112: lBinStart | D112: 269 | E112: 206 | F112: 57 | G112: 18
C113: lLambda1 | D113: 234 | E113: 163 | F113: 111 | G113: 18
C114: lLambda2 | D114: 246 | E114: 202 | F114: 70 | G114: 18
C115: lXlabel | D115: 145 | E115: 104 | F115: 80 | G115: 16
C116: lYlabel | D116: 180 | E116: 134 | F116: 37 | G116: 18
C117: lZlabel | D117: 189 | E117: 162 | F117: 42 | G117: 18
A118: Bracket
A119: TextBoxes | B119: 11 | C119: tTitle | D119: 15 | E119: 22 | F119: 399 | G119: 16 | H119: Arial | I119: 12 | J119: TRUE | K119: FALSE | L119: Arial | M119: 12 | N119: FALSE | O119: FALSE
C120: tStrat | D120: 13 | E120: 142 | F120: 22 | G120: 162 | H120: Arial | I120: 9 | J120: TRUE | K120: FALSE | L120: Arial | M120: 9 | N120: FALSE | O120: FALSE
C121: tDate | D121: 50 | E121: 97 | F121: 66 | G121: 16 | H121: Arial | I121: 10 | J121: TRUE | K121: FALSE | L121: Arial | M121: 10 | N121: FALSE | O121: FALSE
C122: tError | D122: 92 | E122: 86 | F122: 47 | G122: 16 | H122: Arial | I122: 10 | J122: TRUE | K122: FALSE | L122: Arial | M122: 10 | N122: FALSE | O122: FALSE
C123: tBest | D123: 142 | E123: 97 | F123: 53 | G123: 16 | H123: Arial | I123: 10 | J123: TRUE | K123: FALSE | L123: Arial | M123: 10 | N123: FALSE | O123: FALSE
C124: t95 | D124: 210 | E124: 97 | F124: 95 | G124: 16 | H124: Arial | I124: 10 | J124: FALSE | K124: TRUE | L124: Arial | M124: 10 | N124: FALSE | O124: TRUE
C125: tDelt | D125: 315 | E125: 84 | F125: 99 | G125: 24 | H125: Arial | I125: 10 | J125: TRUE | K125: FALSE | L125: Arial | M125: 10 | N125: FALSE | O125: FALSE
C126: tSigLev | D126: 92 | E126: 97 | F126: 54 | G126: 16 | I126: 10 | J126: TRUE | K126: FALSE | L126: Arial | M126: 10 | N126: FALSE | O126: FALSE
C127: tDelt95 | D127: 403 | E127: 97 | F127: 95 | G127: 16 | H127: Arial | I127: 10 | J127: FALSE | K127: TRUE | L127: Arial | M127: 10 | N127: FALSE | O127: TRUE
C128: tNum | D128: 50 | E128: 81 | F128: 44 | G128: 17 | H128: Arial | I128: 10 | J128: TRUE | K128: FALSE | L128: Arial | M128: 10 | N128: FALSE | O128: FALSE
C129: tTopBottom | D129: 155 | E129: 257 | F129: 160 | G129: 17 | H129: Arial | I129: 11 | J129: TRUE | K129: FALSE | L129: Arial | M129: 9 | N129: FALSE | O129: FALSE
A130: Shapes | B130: 84 | C130: Arrow | D130: 30 | E130: 120 | F130: 0 | G130: 150
C131: ba1 | D131: 258 | E131: 115 | F131: 54 | G131: 16
C132: ba2 | D132: 258 | E132: 135 | F132: 54 | G132: 16
C133: ba3 | D133: 258 | E133: 155 | F133: 54 | G133: 16
C134: ba4 | D134: 258 | E134: 175 | F134: 54 | G134: 16
C135: ba5 | D135: 258 | E135: 195 | F135: 54 | G135: 16
C136: ba6 | D136: 258 | E136: 215 | F136: 54 | G136: 16
C137: ba7 | D137: 258 | E137: 235 | F137: 54 | G137: 16
C138: ba8 | D138: 258 | E138: 255 | F138: 54 | G138: 16
C139: bCaveats | D139: 418 | E139: 363 | F139: 66 | G139: 22
C140: bda2 | D140: 447 | E140: 135 | F140: 54 | G140: 16
C141: bda3 | D141: 447 | E141: 155 | F141: 54 | G141: 16
C142: bda4 | D142: 447 | E142: 175 | F142: 54 | G142: 16
C143: bda5 | D143: 447 | E143: 195 | F143: 54 | G143: 16
C144: bda6 | D144: 447 | E144: 215 | F144: 54 | G144: 16
C145: bda7 | D145: 447 | E145: 235 | F145: 54 | G145: 16
C146: bda8 | D146: 447 | E146: 260.25 | F146: 54 | G146: 16
C147: bGo | D147: 414 | E147: 20 | F147: 71 | G147: 27
C148: Cancel | D148: 414 | E148: 57 | F148: 71 | G148: 21
C149: cShowChart | D149: 282 | E149: 304 | F149: 98 | G149: 17
C150: cShowRes | D150: 8 | E150: 367 | F150: 210 | G150: 17
C151: da2 | D151: 327 | E151: 135 | F151: 54 | G151: 16
C152: da3 | D152: 327 | E152: 155 | F152: 54 | G152: 16
C153: da4 | D153: 327 | E153: 175 | F153: 54 | G153: 16
C154: da5 | D154: 327 | E154: 195 | F154: 54 | G154: 16
C155: da6 | D155: 327 | E155: 215 | F155: 54 | G155: 16
C156: da7 | D156: 327 | E156: 235 | F156: 54 | G156: 16
C157: da8 | D157: 327 | E157: 260.25 | F157: 54 | G157: 16
C158: Dialog 1 | D158: 6 | E158: 0 | F158: 544 | G158: 396
C159: ee1 | D159: 96 | E159: 115 | F159: 42 | G159: 18
C160: eE2 | D160: 96 | E160: 135 | F160: 42 | G160: 18
C161: eE3 | D161: 96 | E161: 155 | F161: 42 | G161: 18
C162: eE4 | D162: 96 | E162: 175 | F162: 42 | G162: 18
C163: eE5 | D163: 96 | E163: 195 | F163: 42 | G163: 18
C164: eE6 | D164: 96 | E164: 215 | F164: 42 | G164: 19
C165: eE7 | D165: 96 | E165: 235 | F165: 42 | G165: 19
C166: eE8 | D166: 96 | E166: 255 | F166: 42 | G166: 18
C167: eT1 | D167: 42 | E167: 115 | F167: 48 | G167: 18
C168: eT2 | D168: 42 | E168: 135 | F168: 48 | G168: 18
C169: eT3 | D169: 42 | E169: 155 | F169: 48 | G169: 18
C170: eT4 | D170: 42 | E170: 175 | F170: 48 | G170: 18
C171: eT5 | D171: 42 | E171: 195 | F171: 48 | G171: 18
C172: eT6 | D172: 42 | E172: 215 | F172: 48 | G172: 18
C173: eT7 | D173: 42 | E173: 235 | F173: 48 | G173: 18
C174: eT8 | D174: 42 | E174: 255 | F174: 48 | G174: 18
C175: eTrials | D175: 216 | E175: 325 | F175: 26 | G175: 19
C176: gAbs | D176: 116 | E176: 305 | F176: 82 | G176: 55
C177: gInput | D177: 12 | E177: 293 | F177: 102 | G177: 67
C178: gOutput | D178: 398 | E178: 293 | F178: 106 | G178: 60
C179: gPlot | D179: 270 | E179: 293 | F179: 126 | G179: 78
C180: gTopBottom | D180: 323 | E180: 260 | F180: 181 | G180: 19
C181: lA1 | D181: 145 | E181: 115 | F181: 54 | G181: 16
C182: la2 | D182: 145 | E182: 135 | F182: 54 | G182: 16
C183: la3 | D183: 145 | E183: 155 | F183: 54 | G183: 16
C184: la4 | D184: 145 | E184: 175 | F184: 54 | G184: 16
C185: la5 | D185: 145 | E185: 195 | F185: 54 | G185: 16
C186: la6 | D186: 145 | E186: 215 | F186: 54 | G186: 16
C187: la7 | D187: 145 | E187: 235 | F187: 54 | G187: 16
C188: la8 | D188: 145 | E188: 255 | F188: 54 | G188: 16
C189: lTrials | D189: 200 | E189: 293 | F189: 70 | G189: 30
C190: o1sigma | D190: 18 | E190: 307 | F190: 68 | G190: 17
C191: o2sigma | D191: 19 | E191: 330 | F191: 68 | G191: 17
C192: o68 | D192: 407 | E192: 330 | F192: 76 | G192: 17
C193: o95 | D193: 407 | E193: 309 | F193: 76 | G193: 17
C194: oabs | D194: 120 | E194: 308 | F194: 70 | G194: 17
C195: oAges | D195: 282 | E195: 324 | F195: 84 | G195: 17
C196: oDeltas | D196: 282 | E196: 346 | F196: 98 | G196: 17
C197: opercent | D197: 121 | E197: 330 | F197: 66 | G197: 17
C198: sTrials | D198: 248 | E198: 323 | F198: 10 | G198: 24
C199: ua1 | D199: 204 | E199: 115 | F199: 54 | G199: 16
C200: ua2 | D200: 204 | E200: 135 | F200: 54 | G200: 16
... 749 more rows

Sheet UserFrms
A1: UserForm Specifications | B1: Name each user form's data area by the UserFrom Name, ie Range("Transp").Address=A4:O10
C2: Windows | I2: Macintosh
B3: Font | C3: Size | D3: H | E3: L | F3: T | G3: W | H3: bold | I3: Font | J3: Size | K3: H | L3: L | M3: T | N3: W | O3: bold
A4: Transp | B4: Arial | C4: 10 | D4: 70.5 | E4: 21 | F4: 50.25 | G4: 205.5 | I4: Times New Roman | J4: 10 | K4: 79 | L4: 23 | M4: 45 | N4: 232
A5: lNote | B5: Arial | C5: 9 | D5: 12 | E5: 26.75 | F5: 33 | G5: 120 | H5: False | I5: Arial | J5: 11.25 | K5: 12 | L5: 20.8 | M5: 35.25 | N5: 120 | O5: False
A6: lNote | B6: Arial | C6: 10 | D6: 12 | E6: 19 | F6: 33 | G6: 120 | I6: Arial | J6: 11 | K6: 12 | L6: 50 | M6: 42 | N6: 125
A7: lTransp | B7: Arial | C7: 9 | D7: 14 | E7: 3.45 | F7: 12 | G7: 84.5 | H7: False | I7: Arial | J7: 11.25 | K7: 14 | L7: 7.2 | M7: 13.5 | N7: 101 | O7: False
A8: OK | B8: Arial | C8: 9 | D8: 23.75 | E8: 164.5 | F8: 4.55 | G8: 31.5 | H8: False | I8: Arial | J8: 11.25 | K8: 23.75 | L8: 184.75 | M8: 4.55 | N8: 42.75 | O8: False
A9: SB | D9: 20 | E9: 119.5 | F9: 9 | G9: 19.25 | K9: 23 | L9: 139.7 | M9: 9 | N9: 19.25
A10: TranspBox | B10: Arial | C10: 10 | D10: 18 | E10: 89.25 | F10: 10.05 | G10: 28.5 | H10: False | I10: Arial | J10: 11.25 | K10: 20 | L10: 109.5 | M10: 10.5 | N10: 28.5 | O10: False
A11: DCerrsOnly | B11: Times New Roman | C11: 8.25 | D11: 237.75 | E11: 0 | F11: .75 | G11: 306 | I11: Times New Roman | J11: 8 | K11: 322 | L11: 2 | M11: -5 | N11: 315
A12: AgeTicks | B12: Arial | C12: 9 | D12: 60 | E12: 7 | F12: 82.5 | G12: 239.4 | H12: False | I12: Arial | J12: 11 | K12: 84 | L12: 7 | M12: 113.5 | N12: 245.35 | O12: False
A13: Cancel | B13: Arial | C13: 9.75 | D13: 24 | E13: 251.95 | F13: 41.5 | G13: 42.75 | H13: False | I13: Arial | J13: 11 | K13: 26 | L13: 253.95 | M13: 41.5 | N13: 50.7 | O13: False
A14: Circles | B14: Arial | C14: 8 | D14: 19.5 | E14: 9 | F14: 12 | G14: 245.25 | H14: False | I14: Arial | J14: 11 | K14: 22 | L14: 9 | M14: 14 | N14: 245.25 | O14: False
A15: ConcBand | B15: Arial | C15: 8 | D15: 19.5 | E15: 10 | F15: 27 | G15: 218.25 | H15: False | I15: Arial | J15: 11 | K15: 32 | L15: 10 | M15: 40.05 | N15: 218.25 | O15: False
A16: ConcLine | B16: Arial | C16: 8 | D16: 19.5 | E16: 10 | F16: 9 | G16: 161 | H16: False | I16: Arial | J16: 11 | K16: 19 | L16: 10 | M16: 17 | N16: 161 | O16: False
A17: LineOrBand | B17: Arial | C17: 9 | D17: 60 | E17: 7 | F17: 11 | G17: 239.4 | H17: False | I17: Arial | J17: 11 | K17: 88 | L17: 7 | M17: 11 | N17: 238.35 | O17: False
A18: Lines | B18: Arial | C18: 8 | D18: 19.5 | E18: 10 | F18: 29 | G18: 211.5 | H18: False | I18: Arial | J18: 11 | K18: 29 | L18: 10 | M18: 39 | N18: 235 | O18: False
A19: oBehind | B19: Arial | C19: 8 | D19: 19.5 | E19: 10 | F19: 9 | G19: 165.75 | H19: False | I19: Arial | J19: 11 | K19: 19 | L19: 10 | M19: 14.05 | N19: 165.75 | O19: False
A20: oFront | B20: Arial | C20: 8 | D20: 19.5 | E20: 10 | F20: 27 | G20: 179.25 | H20: False | I20: Arial | J20: 11 | K20: 20 | L20: 10 | M20: 38 | N20: 179.25 | O20: False
A21: OK | B21: Arial | C21: 9.75 | D21: 24 | E21: 251.95 | F21: 9.75 | G21: 42.75 | H21: False | I21: Arial | J21: 11 | K21: 24 | L21: 253.95 | M21: 9.75 | N21: 50.7 | O21: False
A22: Where | B22: Arial | C22: 9 | D22: 60 | E22: 7 | F22: 154 | G22: 239.4 | H22: False | I22: Arial | J22: 11 | K22: 74 | L22: 7 | M22: 213 | N22: 245.35 | O22: False
A23: FalseClr | B23: Arial | C23: 8 | D23: 216.75 | E23: 0 | F23: 0 | G23: 356.25 | I23: Geneva | J23: 9 | K23: 248 | L23: 2 | M23: -5 | N23: 352
A24: Cancel | B24: Arial | C24: 10 | D24: 24.2 | E24: 292.5 | F24: 35.75 | G24: 51.95 | H24: False | I24: Arial | J24: 11 | K24: 24.2 | L24: 286.5 | M24: 35.75 | N24: 57.95 | O24: False
A25: cAutoscale | B25: Arial | C25: 10 | D25: 19.5 | E25: 189 | F25: 15 | G25: 69.75 | H25: False | I25: Arial | J25: 11 | K25: 19.5 | L25: 200.25 | M25: 15.75 | N25: 102 | O25: False
A26: cLog | B26: Arial | C26: 10 | D26: 19.5 | E26: 187.5 | F26: 37.45 | G26: 70.5 | H26: False | I26: Arial | J26: 11 | K26: 19.5 | L26: 198 | M26: 40.5 | N26: 103 | O26: False
A27: eLower | B27: Arial | C27: 10 | D27: 18 | E27: 7 | F27: 15.75 | G27: 63 | H27: False | I27: Arial | J27: 10 | K27: 20 | L27: 7 | M27: 15 | N27: 63 | O27: False
A28: eName | B28: Arial | C28: 10 | D28: 18 | E28: 9 | F28: 83.25 | G28: 115.25 | H28: False | I28: Arial | J28: 10 | K28: 20 | L28: 9 | M28: 94 | N28: 115.25 | O28: False
A29: eRange | B29: Arial | C29: 10 | D29: 18 | E29: 9 | F29: 58.5 | G29: 115.25 | H29: False | I29: Arial | J29: 10 | K29: 20 | L29: 9 | M29: 64.5 | N29: 115.25 | O29: False
A30: eUpper | B30: Arial | C30: 10 | D30: 18 | E30: 7 | F30: 38.25 | G30: 63 | H30: False | I30: Arial | J30: 10 | K30: 20 | L30: 7 | M30: 40 | N30: 63 | O30: False
A31: fLimits | B31: Arial | C31: 10 | D31: 78 | E31: 6.75 | F31: 110.25 | G31: 267.75 | H31: False | I31: Arial | J31: 11 | K31: 81.45 | L31: 6.75 | M31: 132.3 | N31: 321.85 | O31: False
A32: lLower | B32: Arial | C32: 10 | D32: 14 | E32: 78 | F32: 17.75 | G32: 90.75 | H32: False | I32: Arial | J32: 11 | K32: 14 | L32: 78 | M32: 18 | N32: 116.85 | O32: False
A33: lName | B33: Arial | C33: 10 | D33: 14 | E33: 132 | F33: 86.65 | G33: 57 | H33: False | I33: Arial | J33: 11 | K33: 12 | L33: 132 | M33: 98 | N33: 95.05 | O33: False
A34: lRange | B34: Arial | C34: 10 | D34: 14 | E34: 132 | F34: 61.9 | G34: 93 | H34: False | I34: Arial | J34: 11 | K34: 15 | L34: 132 | M34: 68.5 | N34: 131.05 | O34: False
A35: lTitle | B35: Arial | C35: 10 | D35: 43.5 | E35: 6 | F35: 6 | G35: 266.25 | H35: False | I35: Arial | J35: 11 | K35: 51.5 | L35: 6 | M35: 6 | N35: 266.25 | O35: False
A36: lUpper | B36: Arial | C36: 10 | D36: 14 | E36: 78 | F36: 41.5 | G36: 90.75 | H36: False | I36: Arial | J36: 11 | K36: 14 | L36: 78 | M36: 43 | N36: 116.85 | O36: False
A37: OK | B37: Arial | C37: 10 | D37: 24.2 | E37: 292.5 | F37: 6.75 | G37: 51.95 | H37: False | I37: Geneva | J37: 9.75 | K37: 24.2 | L37: 286.5 | M37: 6.75 | N37: 57.95 | O37: False
A38: Series | B38: MS Sans Serif | C38: 8 | D38: 195 | E38: 0 | F38: .75 | G38: 207 | I38: Geneva | J38: 9 | K38: 222 | L38: 2 | M38: -5 | N38: 215
A39: Cancel | B39: Arial | C39: 9 | D39: 24.05 | E39: 153 | F39: 38.25 | G39: 44.65 | H39: False | I39: Arial | J39: 11 | K39: 24.05 | L39: 162 | M39: 38.25 | N39: 44.65 | O39: False
A40: Frame1 | B40: Arial | C40: 9 | D40: 101.5 | E40: 9 | F40: 10 | G40: 137.4 | H40: True | I40: Arial | J40: 11 | K40: 118 | L40: 9 | M40: 10 | N40: 146.4 | O40: False
A41: Npts | B41: Arial | C41: 9 | D41: 12 | E41: 80.5 | F41: 126.75 | G41: 47 | H41: False | I41: Arial | J41: 11 | K41: 12 | L41: 80.5 | M41: 174 | N41: 47 | O41: False
A42: OK | B42: Arial | C42: 9 | D42: 24 | E42: 153 | F42: 4.55 | G42: 44.65 | H42: False | I42: Arial | J42: 11 | K42: 24 | L42: 162 | M42: 4.55 | N42: 44.65 | O42: False
A43: Oplot | B43: Arial | C43: 9 | D43: 12 | E43: 15.5 | F43: 126.75 | G43: 49 | H43: False | I43: Arial | J43: 11 | K43: 12 | L43: 15.5 | M43: 174 | N43: 49 | O43: False
A44: sAbove | B44: Arial | C44: 9 | D44: 19.5 | E44: 49.25 | F44: 11.55 | G44: 58 | H44: False | I44: Arial | J44: 11 | K44: 18 | L44: 49.25 | M44: 20.55 | N44: 58 | O44: False
A45: sBelow | B45: Arial | C45: 9 | D45: 22 | E45: 49.25 | F45: 69.75 | G45: 73 | H45: False | I45: Arial | J45: 11 | K45: 21 | L45: 49.25 | M45: 78.75 | N45: 73 | O45: False
A46: SelectPts | B46: Arial | C46: 9 | D46: 18 | E46: 12.75 | F46: 159.25 | G46: 155.95 | H46: False | I46: Arial | J46: 11 | K46: 18 | L46: 12.75 | M46: 140 | N46: 155.95 | O46: False
A47: SelectPts | B47: Arial | C47: 9 | D47: 12 | E47: 10 | F47: 162.25 | G47: 137 | I47: Arial | J47: 10 | K47: 12 | L47: 10 | M47: 160 | N47: 150
A48: sLeft | B48: Arial | C48: 9 | D48: 22 | E48: 10 | F48: 38 | G48: 42 | H48: False | I48: Arial | J48: 11 | K48: 21 | L48: 10 | M48: 46.95 | N48: 42 | O48: False
A49: sOrder | B49: Arial | C49: 9 | D49: 17.5 | E49: 13.25 | F49: 139.25 | G49: 125.95 | H49: False | I49: Arial | J49: 11 | K49: 17.5 | L49: 13.25 | M49: 156 | N49: 125.95 | O49: False
A50: sRight | B50: Arial | C50: 9 | D50: 22 | E50: 87 | F50: 38 | G50: 47 | H50: False | I50: Arial | J50: 11 | K50: 21 | L50: 87 | M50: 46.95 | N50: 47 | O50: False
A51: Help | B51: Arial | C51: 9 | D51: 464 | E51: 10 | F51: 10 | G51: 394 | I51: Arial | J51: 9 | K51: 469 | L51: 2 | M51: -5 | N51: 390
A52: OK | B52: Arial | C52: 10 | D52: 23 | E52: 329 | F52: 6 | G52: 47 | H52: TRUE | I52: Arial | J52: 11 | K52: 25 | L52: 325 | M52: 6 | N52: 47.25 | O52: FALSE
A53: HelpText | B53: Arial | C53: 9 | D53: 50 | E53: 10 | F53: 34 | G53: 368 | H53: False | I53: Arial | J53: 10 | K53: 51 | L53: 10 | M53: 33.75 | N53: 368 | O53: False
A54: UevoT | B54: Arial | C54: 9 | D54: 276.75 | E54: 0 | F54: .75 | G54: 298.5 | I54: Arial | J54: 10 | K54: 297 | L54: 2 | M54: -5 | N54: 330
A55: bCancel | B55: Arial | C55: 9 | D55: 25.25 | E55: 238.45 | F55: 40.5 | G55: 41 | H55: False | I55: Arial | J55: 11 | K55: 23.25 | L55: 265 | M55: 45.5 | N55: 51 | O55: False
A56: bOK | B56: Arial | C56: 9 | D56: 25.25 | E56: 239.2 | F56: 5.25 | G56: 41 | H56: False | I56: Arial | J56: 11 | K56: 23.25 | L56: 265 | M56: 10.25 | N56: 51 | O56: False
A57: cLabelCurves | B57: Arial | C57: 9 | D57: 21 | E57: 4.5 | F57: 30 | G57: 125.25 | H57: False | I57: Arial | J57: 11 | K57: 21 | L57: 4.5 | M57: 32 | N57: 155 | O57: False
A58: cLabelTicks | B58: Arial | C58: 9 | D58: 21 | E58: 10.5 | F58: 27.7 | G58: 180.75 | H58: False | I58: Arial | J58: 11 | K58: 21 | L58: 10.5 | M58: 27.7 | N58: 180.75 | O58: False
A59: cMultCurves | B59: Arial | C59: 9 | D59: 21 | E59: 4.5 | F59: 6 | G59: 137 | H59: False | I59: Arial | J59: 11 | K59: 21 | L59: 4.5 | M59: 6 | N59: 162 | O59: False
A60: eGamma0_1 | B60: Arial | C60: 9 | D60: 17.25 | E60: 127.2 | F60: 11.25 | G60: 55 | H60: False | I60: Arial | J60: 10 | K60: 17.25 | L60: 148.3 | M60: 11.25 | N60: 67.05 | O60: False
A61: eLabelKa | B61: Arial | C61: 9 | D61: 17.25 | E61: 153.8 | F61: 31.6 | G61: 37.8 | H61: False | I61: Arial | J61: 10 | K61: 17.25 | L61: 186.85 | M61: 31.6 | N61: 42.8 | O61: False
A62: eMaxAge | B62: Arial | C62: 9 | D62: 17.25 | E62: 127.2 | F62: 42 | G62: 55 | H62: False | I62: Arial | J62: 10 | K62: 17.25 | L62: 148.3 | M62: 42 | N62: 67.05 | O62: False
A63: eTickInterval | B63: Arial | C63: 9 | D63: 17.25 | E63: 10.5 | F63: 6.75 | G63: 34.5 | H63: False | I63: Arial | J63: 10 | K63: 17.25 | L63: 10.5 | M63: 6.75 | N63: 34.5 | O63: False
A64: gAgeTix | B64: Arial | C64: 9 | D64: 78.2 | E64: 10 | F64: 164 | G64: 107.75 | H64: False | I64: Arial | J64: 11 | K64: 109.2 | L64: 10 | M64: 156 | N64: 107.75 | O64: False
A65: gCurveSpecs | B65: Arial | C65: 9 | D65: 57.75 | E65: 10 | F65: 86.5 | G65: 275.5 | H65: False | I65: Geneva | J65: 9 | K65: 60.75 | L65: 10 | M65: 93 | N65: 308.5 | O65: False
A66: gFirstCurve | B66: Arial | C66: 9 | D66: 70.55 | E66: 11.5 | F66: 7.25 | G66: 214.8 | H66: False | I66: Geneva | J66: 9 | K66: 79.55 | L66: 11.5 | M66: 7.25 | N66: 243.8 | O66: False
A67: gIsochrons | B67: Arial | C67: 9 | D67: 98 | E67: 120 | F67: 155.75 | G67: 164.6 | H67: False | I67: Geneva | J67: 9 | K67: 104.05 | L67: 120 | M67: 161 | N67: 194.55 | O67: False
A68: l1stG0 | B68: Arial | C68: 9 | D68: 15 | E68: 16.2 | F68: 11 | G68: 101.3 | H68: False | I68: Arial | J68: 11 | K68: 15 | L68: 16.2 | M68: 11 | N68: 123.4 | O68: False
A69: lAgeAtEnd | B69: Arial | C69: 9 | D69: 15 | E69: 4.2 | F69: 44.5 | G69: 113.3 | H69: False | I69: Arial | J69: 11 | K69: 15 | L69: 4.2 | M69: 44.5 | N69: 133.35 | O69: False
A70: lAtThe | B70: Arial | C70: 9 | D70: 11.25 | E70: 123.3 | F70: 34.5 | G70: 26.8 | H70: False | I70: Arial | J70: 11 | K70: 11.25 | L70: 155.35 | M70: 34.5 | N70: 27.8 | O70: False
A71: lFirstCurve | B71: Arial | C71: 9 | D71: 15 | E71: 10.95 | F71: 24 | G71: 106.55 | H71: False | I71: Arial | J71: 11 | K71: 15 | L71: 10.95 | M71: 24 | N71: 127.6 | O71: False
A72: lKa | B72: Arial | C72: 9 | D72: 11 | E72: 198.6 | F72: 34.6 | G72: 48.75 | H72: False | I72: Arial | J72: 11 | K72: 11 | L72: 236.65 | M72: 34.6 | N72: 58.75 | O72: False
A73: lTickInterval | B73: Arial | C73: 9 | D73: 11 | E73: 48.55 | F73: 9.75 | G73: 138.8 | H73: False | I73: Arial | J73: 11 | K73: 11 | L73: 48.55 | M73: 9.75 | N73: 138.8 | O73: False
A74: oAgeTicks | B74: Arial | C74: 9 | D74: 21 | E74: 8.55 | F74: 29.35 | G74: 86.25 | H74: False | I74: Arial | J74: 11 | K74: 23 | L74: 8.55 | M74: 39.35 | N74: 86.25 | O74: False
A75: oInside | B75: Arial | C75: 9 | D75: 21 | E75: 11.25 | F75: 48 | G75: 161.25 | H75: False | I75: Arial | J75: 11 | K75: 18 | L75: 11.25 | M75: 55 | N75: 161.25 | O75: False
A76: oIsochrons | B76: Arial | C76: 9 | D76: 21 | E76: 8.55 | F76: 10.7 | G76: 89.25 | H76: False | I76: Arial | J76: 11 | K76: 23 | L76: 8.55 | M76: 14.7 | N76: 89.25 | O76: False
A77: oNeither | B77: Arial | C77: 9 | D77: 21 | E77: 8.55 | F77: 49.45 | G77: 87.75 | H77: False | I77: Arial | J77: 11 | K77: 23 | L77: 8.55 | M77: 65.5 | N77: 87.75 | O77: False
A78: oOutside | B78: Arial | C78: 9 | D78: 21 | E78: 11.25 | F78: 68.45 | G78: 169.5 | H78: False | I78: Arial | J78: 11 | K78: 19 | L78: 11.25 | M78: 74.45 | N78: 169.5 | O78: False
A79: Jinput | B79: Arial | C79: 8.25 | D79: 190.5 | E79: 0 | F79: .75 | G79: 274.5 | I79: Arial | J79: 8 | K79: 182 | L79: 2 | M79: -5 | N79: 270
A80: OK | B80: Arial | C80: 9.75 | D80: 23 | E80: 201 | F80: 7.05 | G80: 59 | H80: False | I80: Arial | J80: 11 | K80: 25 | L80: 196 | M80: 43.05 | N80: 58.75 | O80: False
A81: gJerr | B81: Arial | C81: 9.75 | D81: 84.35 | E81: 8.25 | F81: 32.95 | G81: 183.5 | H81: False | I81: Arial | J81: 11 | K81: 20 | L81: 18 | M81: 12.75 | N81: 91.75 | O81: False
A82: oPercent | B82: Arial | C82: 9.75 | D82: 21 | E82: 9.25 | F82: 38.15 | G82: 101 | H82: False | I82: Tahoma | J82: 11 | K82: 135.35 | L82: 6.75 | M82: 15.75 | N82: 183.5 | O82: False
A83: oAbs | B83: Arial | C83: 9.75 | D83: 22 | E83: 9.3 | F83: 58.65 | G83: 109 | H83: False | I83: Arial | J83: 11 | K83: 20 | L83: 50 | M83: 12 | N83: 67.8 | O83: False
A84: lJ | B84: Arial | C84: 9.75 | D84: 10.5 | E84: 98.05 | F84: 11 | G84: 60.95 | H84: False | I84: Arial | J84: 11 | K84: 10.5 | L84: 115.5 | M84: 17.5 | N84: 48.25 | O84: False
A85: lJerr | B85: Arial | C85: 9.75 | D85: 24 | E85: 89 | F85: 11 | G85: 75 | H85: False | I85: Arial | J85: 11 | K85: 17.05 | L85: 10.95 | M85: 37 | N85: 145.8 | O85: False
A86: bCancel | B86: Arial | C86: 9.75 | D86: 24 | E86: 200.25 | F86: 43.05 | G86: 58.75 | H86: False | I86: Arial | J86: 11 | K86: 22 | L86: 10 | M86: 100 | N86: 99 | O86: False
A87: eJ | B87: Arial | C87: 9.75 | D87: 18 | E87: 19 | F87: 7.55 | G87: 75 | H87: False | I87: Arial | J87: 11 | K87: 25 | L87: 196 | M87: 7.05 | N87: 59 | O87: False
A88: Jer | B88: Arial | C88: 9.75 | D88: 18 | E88: 10 | F88: 13 | G88: 75 | H88: False | I88: Arial | J88: 11 | K88: 23 | L88: 10 | M88: 93.5 | N88: 105 | O88: False
A89: oMa | B89: Arial | C89: 9.75 | D89: 19.5 | E89: 17 | F89: 123.05 | G89: 84.75 | H89: False | I89: Arial | J89: 11 | K89: 23 | L89: 10 | M89: 72.5 | N89: 101 | O89: False
A90: oKa | B90: Arial | C90: 9.75 | D90: 19.5 | E90: 17 | F90: 145.6 | G90: 83.25 | H90: False | I90: Arial | J90: 11 | K90: 21 | L90: 10 | M90: 75 | N90: 101 | O90: False
A91: TuffZirc | B91: Tahoma | C91: 8.25 | D91: 144 | E91: 0 | F91: .75 | G91: 336 | I91: Arial | J91: 8 | K91: 150 | L91: 2 | M91: -5 | N91: 332
A92: bOK | B92: Arial | C92: 9.75 | D92: 24 | E92: 268.25 | F92: 4.55 | G92: 57.05 | H92: False | I92: Arial | J92: 11.25 | K92: 24 | L92: 268.25 | M92: 4.55 | N92: 57.05 | O92: False
A93: bCancel | B93: Arial | C93: 9.75 | D93: 23 | E93: 268.25 | F93: 39.75 | G93: 57.05 | H93: False | I93: Arial | J93: 11.25 | K93: 23 | L93: 268.25 | M93: 39.75 | N93: 57.05 | O93: False
A94: bHelp | B94: Arial | C94: 9.75 | D94: 24 | E94: 268.25 | F94: 90.25 | G94: 57.05 | H94: False | I94: Arial | J94: 11.25 | K94: 24 | L94: 268.25 | M94: 90.25 | N94: 57.05 | O94: False
A95: cAddChart | B95: Arial | C95: 9.75 | D95: 21 | E95: 8.2 | F95: 101 | G95: 213 | H95: False | I95: Arial | J95: 11.25 | K95: 21 | L95: 8.2 | M95: 93 | N95: 213 | O95: False
A96: cShowWithData | B96: Arial | C96: 9.75 | D96: 17.25 | E96: 9 | F96: 80 | G96: 239 | H96: False | I96: Arial | J96: 11.25 | K96: 17.25 | L96: 9 | M96: 69.75 | N96: 239 | O96: False
A97: lResults | B97: Arial | C97: 11.25 | D97: 47.25 | E97: 6 | F97: 6 | G97: 245.25 | H97: True | I97: Arial | J97: 11.25 | K97: 47.25 | L97: 6 | M97: 6 | N97: 245.25 | O97: True
A98: AddHisto | B98: Arial | C98: 8 | D98: 99.75 | E98: 0 | F98: .75 | G98: 310.5 | I98: Geneva | J98: 9 | K98: 118 | L98: 2 | M98: -5 | N98: 370
A99: bCancel | B99: Arial | C99: 10 | D99: 23 | E99: 251.75 | F99: 33 | G99: 45 | H99: False | I99: Arial | J99: 11 | K99: 26 | L99: 300 | M99: 45 | N99: 62 | O99: True
A100: bOK | B100: Arial | C100: 10 | D100: 23 | E100: 251.75 | F100: 5.25 | G100: 45 | H100: False | I100: Arial | J100: 11 | K100: 26 | L100: 300 | M100: 5.25 | N100: 62 | O100: True
A101: gPosition | B101: Arial | C101: 9 | D101: 63.05 | E101: 7 | F101: 9 | G101: 233.2 | H101: True | I101: Arial | J101: 11 | K101: 79.1 | L101: 7 | M101: 9 | N101: 283.2 | O101: False
A102: oStacked | B102: Arial | C102: 9 | D102: 18.75 | E102: 10 | F102: 30 | G102: 205.5 | H102: False | I102: Arial | J102: 11 | K102: 22 | L102: 10 | M102: 40 | N102: 264 | O102: False
A103: oXaxis | B103: Arial | C103: 9 | D103: 18.75 | E103: 10 | F103: 8.95 | G103: 204.75 | H103: False | I103: Arial | J103: 11 | K103: 23 | L103: 10 | M103: 13 | N103: 264 | O103: False
A104: DatLab | B104: Arial | C104: 10 | D104: 118.5 | E104: 0 | F104: .75 | G104: 324.75 | I104: Arial | J104: 10 | K104: 142 | L104: 2 | M104: -5 | N104: 327
A105: Cancel | B105: Arial | C105: 10 | D105: 24.5 | E105: 262.45 | F105: 41 | G105: 50.05 | H105: False | I105: Arial | J105: 11 | K105: 24.5 | L105: 257.45 | M105: 41 | N105: 55.05 | O105: False
A106: Instructions | B106: Arial | C106: 9 | D106: 37 | E106: 10 | F106: 6 | G106: 231.75 | H106: False | I106: Arial | J106: 11 | K106: 53 | L106: 10 | M106: 6 | N106: 231.75 | O106: False
A107: LabelRange | B107: Arial | C107: 9 | D107: 17.25 | E107: 11.25 | F107: 74.25 | G107: 162 | H107: False | I107: Arial | J107: 10 | K107: 20 | L107: 11.25 | M107: 85 | N107: 162 | O107: False
A108: LabelRangeCapt | B108: Arial | C108: 10 | D108: 15 | E108: 48 | F108: 59 | G108: 90.05 | H108: False | I108: Arial | J108: 11 | K108: 15 | L108: 48 | M108: 67 | N108: 90.05 | O108: False
A109: LabelrangeCapt | B109: Arial | C109: 9 | D109: 15 | E109: 55 | F109: 55 | G109: 95 | I109: Arial | J109: 8 | K109: 15 | L109: 55 | M109: 55 | N109: 95
A110: OK | B110: Arial | C110: 10 | D110: 24.5 | E110: 262.45 | F110: 6 | G110: 50.05 | H110: False | I110: Arial | J110: 11 | K110: 24.5 | L110: 257.45 | M110: 6 | N110: 55.05 | O110: False
A111: Graphics | B111: Arial | C111: 8.25 | D111: 369 | E111: 0 | F111: .75 | G111: 256.5 | I111: Arial | J111: 8 | K111: 455 | L111: 2 | M111: 0 | N111: 265
A112: AlwaysPlot2sigma | B112: Arial | C112: 8 | D112: 21 | E112: 9 | F112: 11.3 | G112: 200 | H112: False | I112: Arial | J112: 11 | K112: 18 | L112: 9 | M112: 14.3 | N112: 200 | O112: False
A113: bCancel | B113: Arial | C113: 8 | D113: 19.3 | E113: 202.5 | F113: 325.75 | G113: 42.25 | H113: False | I113: Arial | J113: 11 | K113: 24 | L113: 200.25 | M113: 397 | N113: 50 | O113: False
A114: bOK | B114: Arial | C114: 8 | D114: 19.3 | E114: 144.25 | F114: 325.75 | G114: 38.25 | H114: False | I114: Arial | J114: 11 | K114: 24 | L114: 150 | M114: 397 | N114: 39.25 | O114: False
A115: Border | B115: Arial | C115: 8 | D115: 18 | E115: 7.5 | F115: 314.2 | G115: 223 | H115: False | I115: Arial | J115: 11 | K115: 18 | L115: 7.5 | M115: 334.2 | N115: 223 | O115: False
A116: cAutoSort | B116: Arial | C116: 8 | D116: 19 | E116: 15 | F116: 47 | G116: 160 | H116: False | I116: Arial | J116: 10 | K116: 19 | L116: 9 | M116: 61.05 | N116: 211 | O116: False
A117: cClipped | B117: Arial | C117: 8 | D117: 22 | E117: 8 | F117: 71.55 | G117: 248 | H117: False | I117: Arial | J117: 11 | K117: 20 | L117: 8 | M117: 85.55 | N117: 248 | O117: False
A118: CcurveThick | B118: Arial | C118: 9 | D118: 18 | E118: 6.75 | F118: 10 | G118: 107.25 | H118: False | I118: Arial | J118: 10 | K118: 20 | L118: 6.75 | M118: 10 | N118: 107.25 | O118: False
A119: cEndCaps | B119: Arial | C119: 8 | D119: 25 | E119: 20.45 | F119: 275.4 | G119: 158.25 | H119: False | I119: Arial | J119: 11 | K119: 27 | L119: 20.45 | M119: 331.4 | N119: 199 | O119: False
A120: Coarse | B120: Arial | C120: 8 | D120: 22 | E120: 8 | F120: 11 | G120: 123 | H120: False | I120: Arial | J120: 11 | K120: 24 | L120: 8 | M120: 9 | N120: 123 | O120: False
A121: cRescale | B121: Arial | C121: 8 | D121: 21 | E121: 15 | F121: 26.75 | G121: 150 | H121: False | I121: Arial | J121: 11 | K121: 21 | L121: 10 | M121: 33.75 | N121: 155 | O121: False
A122: Cross | B122: Arial | C122: 8.25 | D122: 17.25 | E122: 4 | F122: 32.5 | G122: 141 | H122: False | I122: Arial | J122: 10 | K122: 17.25 | L122: 4 | M122: 32.5 | N122: 141 | O122: False
A123: cStack | B123: Arial | C123: 8 | D123: 30 | E123: 6 | F123: 204 | G123: 220.5 | H123: False | I123: Arial | J123: 11 | K123: 30 | L123: 6 | M123: 204 | N123: 220.5 | O123: False
A124: cSuper | B124: Arial | C124: 8 | D124: 22 | E124: 6 | F124: 154 | G124: 243 | H124: False | I124: Arial | J124: 11 | K124: 22 | L124: 6 | M124: 154 | N124: 243 | O124: False
A125: CurvTikSize | B125: Arial | C125: 9 | D125: 18 | E125: 6.75 | F125: 57.2 | G125: 107.25 | H125: False | I125: Arial | J125: 10 | K125: 20 | L125: 6.75 | M125: 57.2 | N125: 107.25 | O125: False
A126: CurvTikSymb | B126: Arial | C126: 9 | D126: 18 | E126: 6.75 | F126: 33.6 | G126: 107.25 | H126: False | I126: Arial | J126: 10 | K126: 20 | L126: 6.75 | M126: 33.6 | N126: 107.25 | O126: False
A127: dAgeTikFill | B127: Arial | C127: 8 | D127: 18 | E127: 5 | F127: 116.35 | G127: 85 | H127: False | I127: Arial | J127: 10 | K127: 20 | L127: 5 | M127: 116.35 | N127: 85 | O127: False
A128: dAgeTikLine | B128: Arial | C128: 8 | D128: 18 | E128: 5 | F128: 87.05 | G128: 85 | H128: False | I128: Arial | J128: 10 | K128: 20 | L128: 5 | M128: 87.05 | N128: 85 | O128: False
A129: dAgeTiks | B129: Arial | C129: 8 | D129: 17.25 | E129: 7 | F129: 112.65 | G129: 89.95 | H129: False | I129: Arial | J129: 10 | K129: 20 | L129: 7 | M129: 112.65 | N129: 89.95 | O129: False
A130: dAxisNames | B130: Arial | C130: 8 | D130: 17.25 | E130: 7 | F130: 37.65 | G130: 89.95 | H130: False | I130: Arial | J130: 10 | K130: 20 | L130: 7 | M130: 37.65 | N130: 89.95 | O130: False
A131: dAxisTikLabels | B131: Arial | C131: 8 | D131: 17.25 | E131: 7 | F131: 62.65 | G131: 89.95 | H131: False | I131: Arial | J131: 10 | K131: 20 | L131: 7 | M131: 62.65 | N131: 89.95 | O131: False
A132: dConcordCurve | B132: Arial | C132: 8 | D132: 18 | E132: 5 | F132: 175 | G132: 85 | H132: False | I132: Arial | J132: 10 | K132: 20 | L132: 5 | M132: 175 | N132: 85 | O132: False
A133: dIsoline | B133: Arial | C133: 8 | D133: 18 | E133: 5 | F133: 145.6 | G133: 85 | H133: False | I133: Arial | J133: 10 | K133: 20 | L133: 5 | M133: 145.6 | N133: 85 | O133: False
A134: dIsoRes | B134: Arial | C134: 8 | D134: 17.25 | E134: 7 | F134: 87.6 | G134: 89.95 | H134: False | I134: Arial | J134: 10 | K134: 20 | L134: 7 | M134: 87.6 | N134: 89.95 | O134: False
A135: dPlotbox | B135: Arial | C135: 8 | D135: 18 | E135: 5 | F135: 57.75 | G135: 85 | H135: False | I135: Arial | J135: 10 | K135: 20 | L135: 5 | M135: 57.75 | N135: 85 | O135: False
A136: dSheet | B136: Arial | C136: 8 | D136: 18 | E136: 5 | F136: 28.5 | G136: 85 | H136: False | I136: Arial | J136: 10 | K136: 20 | L136: 5 | M136: 28.5 | N136: 85 | O136: False
A137: eAgeTiks | B137: Arial | C137: 8 | D137: 17.25 | E137: 103.8 | F137: 112.7 | G137: 26.75 | H137: False | I137: Arial | J137: 10 | K137: 20 | L137: 103.8 | M137: 112.7 | N137: 26.75 | O137: False
A138: eAxisNames | B138: Arial | C138: 8 | D138: 17.25 | E138: 103 | F138: 37.7 | G138: 26.75 | H138: False | I138: Arial | J138: 10 | K138: 20 | L138: 103 | M138: 37.7 | N138: 26.75 | O138: False
A139: eAxisTikLabels | B139: Arial | C139: 8 | D139: 17.25 | E139: 103 | F139: 62.65 | G139: 26.75 | H139: False | I139: Arial | J139: 10 | K139: 20 | L139: 103 | M139: 62.65 | N139: 26.75 | O139: False
A140: eIsoRes | B140: Arial | C140: 8 | D140: 17.25 | E140: 103.8 | F140: 87.65 | G140: 26.75 | H140: False | I140: Arial | J140: 10 | K140: 20 | L140: 103.8 | M140: 87.65 | N140: 26.75 | O140: False
A141: fAfterCompletion | B141: Arial | C141: 9 | D141: 79.8 | E141: 4.7 | F141: 195.3 | G141: 218.05 | H141: False | I141: Arial | J141: 11 | K141: 98.4 | L141: 4.7 | M141: 218.25 | N141: 241.05 | O141: False
A142: fConcordCurv | B142: Arial | C142: 9 | D142: 88.8 | E142: 6 | F142: 70.75 | G142: 218 | H142: False | I142: Arial | J142: 11 | K142: 90.8 | L142: 6 | M142: 74.75 | N142: 238.05 | O142: False
A143: fDefaultClrs | B143: Arial | C143: 9 | D143: 217.8 | E143: 8.55 | F143: 26 | G143: 220.8 | H143: False | I143: Arial | J143: 11 | K143: 223.8 | L143: .5 | M143: 26 | N143: 245.8 | O143: False
A144: Fine | B144: Arial | C144: 8 | D144: 22 | E144: 8 | F144: 51.35 | G144: 123 | H144: False | I144: Arial | J144: 11 | K144: 22 | L144: 8 | M144: 57.35 | N144: 123 | O144: False
A145: fIsoRes | B145: Arial | C145: 9 | D145: 55.65 | E145: 6.75 | F145: 237.3 | G145: 168 | H145: False | I145: Arial | J145: 11 | K145: 62.65 | L145: 6.75 | M145: 261.3 | N145: 143 | O145: False
A146: fRegression | B146: Arial | C146: 9 | D146: 69 | E146: 6 | F146: 163.75 | G146: 218 | H146: False | I146: Arial | J146: 11 | K146: 79.05 | L146: 7 | M146: 169.75 | N146: 237.05 | O146: False
A147: fResolution | B147: Arial | C147: 9 | D147: 104.5 | E147: 3.95 | F147: 10 | G147: 218.05 | H147: False | I147: Arial | J147: 11 | K147: 122.1 | L147: 3.95 | M147: 10 | N147: 241.05 | O147: False
A148: fSigLev | B148: Arial | C148: 9 | D148: 67.5 | E148: 4.75 | F148: 121.25 | G148: 218.05 | H148: False | I148: Arial | J148: 11 | K148: 68.1 | L148: 4.75 | M148: 141.3 | N148: 241.05 | O148: False
A149: gAxisLines | B149: Arial | C149: 9 | D149: 60 | E149: 6 | F149: 6 | G149: 90.25 | H149: False | I149: Arial | J149: 11 | K149: 64 | L149: 6 | M149: 6 | N149: 90.25 | O149: False
A150: gAxisTicks | B150: Arial | C150: 9 | D150: 60 | E150: 100.25 | F150: 6 | G150: 123.5 | H150: False | I150: Arial | J150: 11 | K150: 64 | L150: 104.5 | M150: 6 | N150: 139.5 | O150: False
A151: Graphical | B151: Arial | C151: 9 | D151: 318.45 | E151: 5.25 | F151: 3 | G151: 236.8 | H151: False | I151: Arial | J151: 11 | K151: 390 | L151: 5.25 | M151: 3 | N151: 255 | O151: False
A152: InputSigma | B152: Arial | C152: 8 | D152: 19 | E152: 9 | F152: 33.25 | G152: 200 | H152: False | I152: Arial | J152: 11 | K152: 20 | L152: 9 | M152: 37.25 | N152: 200 | O152: False
A153: Inside | B153: Arial | C153: 8.25 | D153: 17.25 | E153: 4 | F153: 12.75 | G153: 140 | H153: False | I153: Arial | J153: 10 | K153: 17.25 | L153: 4 | M153: 12.75 | N153: 140 | O153: False
A154: IsoLineStyle | B154: Arial | C154: 9 | D154: 18 | E154: 6 | F154: 10.5 | G154: 99.5 | H154: False | I154: Arial | J154: 10 | K154: 20 | L154: 6 | M154: 15 | N154: 99.5 | O154: False
A155: IsoLineThick | B155: Arial | C155: 9 | D155: 18 | E155: 6 | F155: 37 | G155: 99.5 | H155: False | I155: Arial | J155: 10 | K155: 20 | L155: 6 | M155: 42 | N155: 99.5 | O155: False
A156: L_undr | B156: Arial | C156: 9.75 | D156: 15.05 | E156: 62.75 | F156: 242.5 | G156: 26 | H156: False | I156: Arial | J156: 9.75 | K156: 15.05 | L156: 62.75 | M156: 242.5 | N156: 26 | O156: False
A157: L86_1 | B157: MS Sans Serif | C157: 8 | D157: 9.75 | E157: 63.75 | F157: 255.25 | G157: 9.75 | H157: False | I157: Geneva | J157: 9 | K157: 12 | L157: 62 | M157: 255.25 | N157: 13 | O157: False
A158: L86_2 | B158: MS Sans Serif | C158: 8 | D158: 9 | E158: 154.5 | F158: 244 | G158: 9.75 | H158: False | I158: Geneva | J158: 9 | K158: 12 | L158: 178 | M158: 244 | N158: 13.05 | O158: False
A159: L87_1 | B159: MS Sans Serif | C159: 8 | D159: 9.75 | E159: 63.75 | F159: 237.25 | G159: 9.75 | H159: False | I159: Geneva | J159: 9 | K159: 12 | L159: 62 | M159: 237.25 | N159: 13 | O159: False
A160: L87_2 | B160: MS Sans Serif | C160: 8.25 | D160: 9 | E160: 133.5 | F160: 244 | G160: 9.75 | H160: False | I160: Geneva | J160: 9 | K160: 12 | L160: 151 | M160: 244 | N160: 13 | O160: False
A161: Label1 | B161: Arial | C161: 9 | D161: 11.25 | E161: 110.5 | F161: 13.9 | G161: 76.5 | H161: False | I161: Arial | J161: 10 | K161: 16.25 | L161: 110.5 | M161: 20.9 | N161: 76.5 | O161: False
A162: Label10 | B162: Arial | C162: 8 | D162: 12 | E162: 94 | F162: 91.1 | G162: 116.45 | H162: False | I162: Arial | J162: 11 | K162: 12 | L162: 94 | M162: 91.1 | N162: 116.45 | O162: False
A163: Label11 | B163: Arial | C163: 8 | D163: 12 | E163: 94 | F163: 120.35 | G163: 116.45 | H163: False | I163: Arial | J163: 11 | K163: 12 | L163: 94 | M163: 120.35 | N163: 116.45 | O163: False
A164: Label12 | B164: Arial | C164: 8 | D164: 12 | E164: 94 | F164: 149.65 | G164: 116.45 | H164: False | I164: Arial | J164: 11 | K164: 12 | L164: 94 | M164: 149.65 | N164: 137.55 | O164: False
A165: Label13 | B165: Arial | C165: 8 | D165: 12 | E165: 94 | F165: 179.05 | G165: 116.45 | H165: False | I165: Arial | J165: 11 | K165: 12 | L165: 94 | M165: 179.05 | N165: 141.55 | O165: False
A166: Label31 | B166: Arial | C166: 8 | D166: 12 | E166: 42 | F166: 22.95 | G166: 52 | H166: True | I166: Arial | J166: 11 | K166: 12 | L166: 42 | M166: 22.95 | N166: 52 | O166: True
A167: Label32 | B167: Arial | C167: 8 | D167: 12 | E167: 106 | F167: 22.95 | G167: 26 | H167: True | I167: Arial | J167: 11 | K167: 12 | L167: 106 | M167: 22.95 | N167: 26 | O167: True
A168: Label33 | B168: Arial | C168: 9 | D168: 11.25 | E168: 110.5 | F168: 40.35 | G168: 86.25 | H168: False | I168: Arial | J168: 10 | K168: 14.25 | L168: 110.5 | M168: 45.4 | N168: 86.25 | O168: False
A169: Label4 | B169: Arial | C169: 8 | D169: 12 | E169: 120 | F169: 36.6 | G169: 102 | H169: False | I169: Arial | J169: 10 | K169: 12 | L169: 120 | M169: 36.6 | N169: 102 | O169: False
A170: Label5 | B170: Arial | C170: 8 | D170: 12 | E170: 120 | F170: 13 | G170: 102 | H170: False | I170: Arial | J170: 10 | K170: 12 | L170: 120 | M170: 13 | N170: 102 | O170: False
A171: Label6 | B171: Arial | C171: 8 | D171: 12 | E171: 120 | F171: 60.2 | G171: 102 | H171: False | I171: Arial | J171: 10 | K171: 12 | L171: 120 | M171: 60.2 | N171: 102 | O171: False
A172: Label7 | B172: Arial | C172: 9 | D172: 16.5 | E172: 10.5 | F172: 10.2 | G172: 123.25 | H172: False | I172: Arial | J172: 11 | K172: 15.5 | L172: 10.5 | M172: 14.2 | N172: 155.25 | O172: False
A173: Label8 | B173: Arial | C173: 8 | D173: 12 | E173: 94 | F173: 32.5 | G173: 116.45 | H173: False | I173: Arial | J173: 11 | K173: 12 | L173: 94 | M173: 32.5 | N173: 116.45 | O173: False
A174: Label9 | B174: Arial | C174: 8 | D174: 12 | E174: 94 | F174: 61.8 | G174: 116.45 | H174: False | I174: Arial | J174: 11 | K174: 12 | L174: 94 | M174: 61.8 | N174: 116.45 | O174: False
A175: lAgeTiks | B175: Arial | C175: 8 | D175: 12 | E175: 155.75 | F175: 116.7 | G175: 76 | H175: False | I175: Arial | J175: 11 | K175: 12 | L175: 155.75 | M175: 116.7 | N175: 76 | O175: False
A176: lAxisNames | B176: Arial | C176: 8 | D176: 12 | E176: 155.75 | F176: 41.75 | G176: 76 | H176: False | I176: Arial | J176: 11 | K176: 12 | L176: 155.75 | M176: 41.75 | N176: 76 | O176: False
A177: lAxisTikLabels | B177: Arial | C177: 8 | D177: 12 | E177: 155.75 | F177: 66.7 | G177: 76 | H177: False | I177: Arial | J177: 11 | K177: 12 | L177: 155.75 | M177: 66.7 | N177: 76 | O177: False
A178: lExample | B178: Arial | C178: 8 | D178: 13 | E178: 18 | F178: 248 | G178: 264.35 | H178: False | I178: Arial | J178: 9 | K178: 13 | L178: 10 | M178: 248 | N178: 233 | O178: False
A179: lIsoRes | B179: Arial | C179: 8 | D179: 12 | E179: 155.75 | F179: 91.65 | G179: 76 | H179: False | I179: Arial | J179: 11 | K179: 12 | L179: 155.75 | M179: 91.65 | N179: 76 | O179: False
A180: lMacBug | B180: Arial | C180: 8 | D180: 16 | E180: 25 | F180: 175 | G180: 204 | H180: False | I180: Arial | J180: 11 | K180: 16 | L180: 25 | M180: 175 | N180: 204 | O180: False
A181: LSr_1 | B181: Arial | C181: 9.75 | D181: 12 | E181: 73.75 | F181: 240.25 | G181: 12 | H181: False | I181: Arial | J181: 9.75 | K181: 12 | L181: 73.75 | M181: 240.25 | N181: 12 | O181: False
A182: LSr_2 | B182: Arial | C182: 9.75 | D182: 12 | E182: 73.75 | F182: 258.25 | G182: 12 | H182: False | I182: Arial | J182: 9.75 | K182: 12 | L182: 73.75 | M182: 258.25 | N182: 12 | O182: False
A183: Medium | B183: Arial | C183: 8 | D183: 22 | E183: 8 | F183: 31.2 | G183: 123 | H183: False | I183: Arial | J183: 11 | K183: 21 | L183: 8 | M183: 34.2 | N183: 123 | O183: False
A184: Rounded | B184: Arial | C184: 8 | D184: 24 | E184: 13.5 | F184: 4.95 | G184: 90.75 | H184: False | I184: Arial | J184: 10 | K184: 18 | L184: 13.5 | M184: 10 | N184: 90.75 | O184: False
A185: sAgeTiks | D185: 20 | E185: 131.75 | F185: 112.7 | G185: 20 | K185: 20 | L185: 131.75 | M185: 112.7 | N185: 20
A186: sAxisNames | D186: 20 | E186: 131.75 | F186: 37.7 | G186: 20 | K186: 20 | L186: 131.75 | M186: 37.7 | N186: 20
A187: sAxisTikLabels | D187: 20 | E187: 131.75 | F187: 62.65 | G187: 20 | K187: 20 | L187: 131.75 | M187: 62.65 | N187: 20
A188: Shadowed | B188: Arial | C188: 8 | D188: 18 | E188: 13.5 | F188: 25.7 | G188: 88.5 | H188: False | I188: Arial | J188: 10 | K188: 18 | L188: 13.5 | M188: 31 | N188: 88.5 | O188: False
A189: sIsoRes | D189: 20 | E189: 131.75 | F189: 87.65 | G189: 20 | K189: 20 | L189: 131.75 | M189: 87.65 | N189: 20
A190: Thick | B190: Arial | C190: 8.25 | D190: 17.25 | E190: 7.25 | F190: 32.5 | G190: 63 | H190: False | I190: Arial | J190: 10 | K190: 17.25 | L190: 7.25 | M190: 32.5 | N190: 63 | O190: False
A191: Thin | B191: Arial | C191: 8.25 | D191: 17.25 | E191: 7.25 | F191: 12.75 | G191: 60 | H191: False | I191: Arial | J191: 10 | K191: 17.25 | L191: 7.25 | M191: 12.75 | N191: 60 | O191: False
A192: Consts | B192: Arial | C192: 9.75 | D192: 372 | E192: 0 | F192: .75 | G192: 306.75 | I192: Arial | J192: 11 | K192: 382 | L192: 2 | M192: 0 | N192: 303
A193: gLambdas | B193: Arial | C193: 9 | D193: 286.25 | E193: 8 | F193: 8.25 | G193: 144.75 | H193: False | I193: Arial | J193: 11 | K193: 286.25 | L193: 8 | M193: 8.25 | N193: 144.75 | O193: False
A194: gArAr | B194: Arial | C194: 9 | D194: 121.7 | E194: 6 | F194: 114.05 | G194: 285 | H194: False | I194: Arial | J194: 11 | K194: 120.75 | L194: 6 | M194: 114.05 | N194: 285 | O194: False
A195: gSourceParams | B195: Arial | C195: 9 | D195: 211.7 | E195: 39.05 | F195: 36 | G195: 213.8 | H195: False | I195: Arial | J195: 11 | K195: 218.65 | L195: 27 | M195: 36 | N195: 234.8 | O195: False
A196: eRbSr | B196: Arial | C196: 9 | D196: 18 | E196: 19.3 | F196: 35.2 | G196: 57 | H196: False | I196: Arial | J196: 9 | K196: 18 | L196: 19.3 | M196: 35.2 | N196: 70 | O196: False
A197: eNdNd | B197: Arial | C197: 9 | D197: 18 | E197: 113.75 | F197: 82.45 | G197: 57 | H197: False | I197: Arial | J197: 9 | K197: 18 | L197: 140 | M197: 82.45 | N197: 70 | O197: False
A198: eHfHf | B198: Arial | C198: 9 | D198: 18 | E198: 113.75 | F198: 174 | G198: 57 | H198: False | I198: Arial | J198: 9 | K198: 18 | L198: 140 | M198: 174 | N198: 70 | O198: False
A199: eOsOs | B199: Arial | C199: 9 | D199: 18 | E199: 113.75 | F199: 131.95 | G199: 57 | H199: False | I199: Arial | J199: 9 | K199: 18 | L199: 140 | M199: 131.95 | N199: 70 | O199: False
A200: eSrSr | B200: Arial | C200: 9 | D200: 18 | E200: 113.75 | F200: 35.2 | G200: 57 | H200: False | I200: Arial | J200: 9 | K200: 18 | L200: 140 | M200: 35.2 | N200: 70 | O200: False
... 61 more rows

Sheet bftsplk
